Workbook

Sheet Tabelle1
A1: Erzeugung von Spiralmustern
B4: Außenbereich | AA4: Innenbereich
A5: Um- | C5: Δa = Δb = | I5: Δθ = | AB5: Δa = Δb =
A6: lauf- | C6: 0.09 | E6: Unverdreht | G6: Verdreht | I6: =PI()/30 -> 0.1047197551 | AB6: 0.08 | AD6: Unverdreht
A7: Nr. | B7: t | C7: a | D7: b | E7: x | F7: y | G7: x | H7: y | I7: θ | AA7: t | AB7: a | AC7: b | AD7: x | AE7: y
A8: 1 | B8: 0 | C8: 1 | D8: 1.3 | E8: =C8*COS(B8) -> 1 | F8: =D8*SIN(B8) -> 0 | G8: =E8 -> 1 | H8: =F8 -> 0 | I8: 0 | AA8: 0 | AB8: 0.2 | AC8: 0.5 | AD8: =AB8*COS(AA8) -> 0.2 | AE8: =AC8*SIN(AA8) -> 0
B9: =B8+PI()/12 -> 0.2617993878 | C9: =C8 -> 1 | D9: =D8 -> 1.3 | E9: =C9*COS(B9) -> 0.9659258263 | F9: =D9*SIN(B9) -> 0.3364647586 | G9: =E9 -> 0.9659258263 | H9: =F9 -> 0.3364647586 | I9: 0 | AA9: =AA8+PI()/10 -> 0.3141592654 | AB9: =AB8 -> 0.2 | AC9: =AC8 -> 0.5 | AD9: 0.1902113033 | AE9: 0.1545084972
B10: =B9+PI()/12 -> 0.5235987756 | C10: =C9 -> 1 | D10: =D9 -> 1.3 | E10: =C10*COS(B10) -> 0.8660254038 | F10: =D10*SIN(B10) -> 0.65 | G10: =E10 -> 0.8660254038 | H10: =F10 -> 0.65 | I10: 0 | AA10: =AA9+PI()/10 -> 0.6283185307 | AB10: =AB9 -> 0.2 | AC10: 0.5 | AD10: 0.1618033989 | AE10: 0.2938926261
B11: 0.7853981634 | C11: 1 | D11: 1.3 | E11: 0.7071067812 | F11: 0.9192388155 | G11: 0.7071067812 | H11: 0.9192388155 | I11: 0 | AA11: 0.9424777961 | AB11: 0.2 | AC11: 0.5 | AD11: 0.1175570505 | AE11: 0.4045084972
B12: 1.047197551 | C12: 1 | D12: 1.3 | E12: 0.5 | F12: 1.125833025 | G12: 0.5 | H12: 1.125833025 | I12: 0 | AA12: 1.256637061 | AB12: 0.2 | AC12: 0.5 | AD12: 0.06180339887 | AE12: 0.4755282581
B13: 1.308996939 | C13: 1 | D13: 1.3 | E13: 0.2588190451 | F13: 1.255703574 | G13: 0.2588190451 | H13: 1.255703574 | I13: 0 | AA13: 1.570796327 | AB13: 0.2 | AC13: 0.5 | AD13: 1.225148455e-17 | AE13: 0.5
B14: 1.570796327 | C14: 1 | D14: 1.3 | E14: 2.833020277e-16 | F14: 1.3 | G14: 2.833020277e-16 | H14: 1.3 | I14: 0 | AA14: 1.884955592 | AB14: 0.2 | AC14: 0.5 | AD14: -0.06180339887 | AE14: 0.4755282581
B15: 1.832595715 | C15: 1 | D15: 1.3 | E15: -0.2588190451 | F15: 1.255703574 | G15: -0.2588190451 | H15: 1.255703574 | I15: 0 | AA15: 2.199114858 | AB15: 0.2 | AC15: 0.5 | AD15: -0.1175570505 | AE15: 0.4045084972
B16: 2.094395102 | C16: 1 | D16: 1.3 | E16: -0.5 | F16: 1.125833025 | G16: -0.5 | H16: 1.125833025 | I16: 0 | AA16: 2.513274123 | AB16: 0.2 | AC16: 0.5 | AD16: -0.1618033989 | AE16: 0.2938926261
B17: 2.35619449 | C17: 1 | D17: 1.3 | E17: -0.7071067812 | F17: 0.9192388155 | G17: -0.7071067812 | H17: 0.9192388155 | I17: 0 | AA17: 2.827433388 | AB17: 0.2 | AC17: 0.5 | AD17: -0.1902113033 | AE17: 0.1545084972
B18: 2.617993878 | C18: 1 | D18: 1.3 | E18: -0.8660254038 | F18: 0.65 | G18: -0.8660254038 | H18: 0.65 | I18: 0 | AA18: 3.141592654 | AB18: 0.2 | AC18: 0.5 | AD18: -0.2 | AE18: 6.125742275e-17
B19: 2.879793266 | C19: 1 | D19: 1.3 | E19: -0.9659258263 | F19: 0.3364647586 | G19: -0.9659258263 | H19: 0.3364647586 | I19: 0 | AA19: 3.455751919 | AB19: 0.2 | AC19: 0.5 | AD19: -0.1902113033 | AE19: -0.1545084972
B20: 3.141592654 | C20: 1 | D20: 1.3 | E20: -1 | F20: -4.180466737e-16 | G20: -1 | H20: -4.180466737e-16 | I20: 0 | AA20: 3.769911184 | AB20: 0.2 | AC20: 0.5 | AD20: -0.1618033989 | AE20: -0.2938926261
B21: 3.403392041 | C21: 1 | D21: 1.3 | E21: -0.9659258263 | F21: -0.3364647586 | G21: -0.9659258263 | H21: -0.3364647586 | I21: 0 | AA21: 4.08407045 | AB21: 0.2 | AC21: 0.5 | AD21: -0.1175570505 | AE21: -0.4045084972
B22: 3.665191429 | C22: 1 | D22: 1.3 | E22: -0.8660254038 | F22: -0.65 | G22: -0.8660254038 | H22: -0.65 | I22: 0 | AA22: 4.398229715 | AB22: 0.2 | AC22: 0.5 | AD22: -0.06180339887 | AE22: -0.4755282581
B23: 3.926990817 | C23: 1 | D23: 1.3 | E23: -0.7071067812 | F23: -0.9192388155 | G23: -0.7071067812 | H23: -0.9192388155 | I23: 0 | AA23: 4.71238898 | AB23: 0.2 | AC23: 0.5 | AD23: -3.675445365e-17 | AE23: -0.5
B24: 4.188790205 | C24: 1 | D24: 1.3 | E24: -0.5 | F24: -1.125833025 | G24: -0.5 | H24: -1.125833025 | I24: 0 | AA24: 5.026548246 | AB24: 0.2 | AC24: 0.5 | AD24: 0.06180339887 | AE24: -0.4755282581
B25: 4.450589593 | C25: 1 | D25: 1.3 | E25: -0.2588190451 | F25: -1.255703574 | G25: -0.2588190451 | H25: -1.255703574 | I25: 0 | AA25: 5.340707511 | AB25: 0.2 | AC25: 0.5 | AD25: 0.1175570505 | AE25: -0.4045084972
B26: 4.71238898 | C26: 1 | D26: 1.3 | E26: -1.837722682e-16 | F26: -1.3 | G26: -1.837722682e-16 | H26: -1.3 | I26: 0 | AA26: 5.654866776 | AB26: =AB25 -> 0.2 | AC26: 0.5 | AD26: 0.1618033989 | AE26: -0.2938926261
B27: 4.974188368 | C27: 1 | D27: 1.3 | E27: 0.2588190451 | F27: -1.255703574 | G27: 0.2588190451 | H27: -1.255703574 | I27: 0 | AA27: 5.969026042 | AB27: 0.2 | AC27: 0.5 | AD27: 0.1902113033 | AE27: -0.1545084972
B28: 5.235987756 | C28: 1 | D28: 1.3 | E28: 0.5 | F28: -1.125833025 | G28: 0.5 | H28: -1.125833025 | I28: 0 | AA28: 6.283185307 | AB28: 0.2 | AC28: 0.5 | AD28: 0.2 | AE28: -1.225148455e-16
B29: 5.497787144 | C29: 1 | D29: 1.3 | E29: =C29*COS(B29) -> 0.7071067812 | F29: =D29*SIN(B29) -> -0.9192388155 | G29: =E29 -> 0.7071067812 | H29: =F29 -> -0.9192388155 | I29: 0
B30: 5.759586532 | C30: 1 | D30: 1.3 | E30: 0.8660254038 | F30: -0.65 | G30: 0.8660254038 | H30: -0.65 | I30: 0 | AA30: 0 | AB30: =AB28+$AB$6 -> 0.28 | AC30: =AC28+$AB$6 -> 0.58 | AD30: =AB30*COS(AA30) -> 0.28 | AE30: =AC30*SIN(AA30) -> 0
B31: 6.021385919 | C31: 1 | D31: 1.3 | E31: 0.9659258263 | F31: -0.3364647586 | G31: 0.9659258263 | H31: -0.3364647586 | I31: 0 | AA31: =AA30+PI()/10 -> 0.3141592654 | AB31: =AB30 -> 0.28 | AC31: =AC30 -> 0.58 | AD31: 0.2662958246 | AE31: 0.1792298567
B32: 6.283185307 | C32: 1 | D32: 1.3 | E32: 1 | F32: -2.627802489e-15 | G32: 1 | H32: -2.627802489e-15 | I32: 0 | AA32: =AA31+PI()/10 -> 0.6283185307 | AB32: =AB31 -> 0.28 | AC32: 0.58 | AD32: 0.2265247584 | AE32: 0.3409154463
AA33: 0.9424777961 | AB33: 0.28 | AC33: 0.58 | AD33: 0.1645798706 | AE33: 0.4692298567
A34: =A8+1 -> 2 | B34: 0 | C34: =C32+$C$6 -> 1.09 | D34: =D32+$C$6 -> 1.39 | E34: =C34*COS(B34) -> 1.09 | F34: =D34*SIN(B34) -> 0 | G34: =E34*COS(I34)-F34*SIN(I34) -> 1.084028866 | H34: =E34*SIN(I34)+F34*COS(I34) -> 0.113936025 | I34: =I32+$I$6 -> 0.1047197551 | AA34: 1.256637061 | AB34: 0.28 | AC34: 0.58 | AD34: 0.08652475842 | AE34: 0.5516127795
B35: =B34+PI()/12 -> 0.2617993878 | C35: =C34 -> 1.09 | D35: =D34 -> 1.39 | E35: =C35*COS(B35) -> 1.052859151 | F35: =D35*SIN(B35) -> 0.3597584727 | G35: =E35*COS(I35)-F35*SIN(I35) -> 1.009486478 | H35: =E35*SIN(I35)+F35*COS(I35) -> 0.4678414272 | I35: =I34 -> 0.1047197551 | AA35: 1.570796327 | AB35: 0.28 | AC35: 0.58 | AD35: 1.715207837e-17 | AE35: 0.58
B36: =B35+PI()/12 -> 0.5235987756 | C36: 1.09 | D36: 1.39 | E36: =C36*COS(B36) -> 0.9439676901 | F36: =D36*SIN(B36) -> 0.695 | G36: =E36*COS(I36)-F36*SIN(I36) -> 0.8661492544 | H36: =E36*SIN(I36)+F36*COS(I36) -> 0.7898642093 | I36: 0.1047197551 | AA36: 1.884955592 | AB36: 0.28 | AC36: 0.58 | AD36: -0.08652475842 | AE36: 0.5516127795
B37: 0.7853981634 | C37: 1.09 | D37: 1.39 | E37: 0.7707463915 | F37: 0.9828784258 | G37: 0.6637853907 | H37: 1.058059051 | I37: 0.1047197551 | AA37: 2.199114858 | AB37: 0.28 | AC37: 0.58 | AD37: -0.1645798706 | AE37: 0.4692298567
B38: 1.047197551 | C38: 1.09 | D38: 1.39 | E38: 0.545 | F38: 1.203775311 | G38: 0.4161856496 | H38: 1.254148917 | I38: 0.1047197551 | AA38: 2.513274123 | AB38: 0.28 | AC38: 0.58 | AD38: -0.2265247584 | AE38: 0.3409154463
B39: 1.308996939 | C39: 1.09 | D39: 1.39 | E39: 0.2821127592 | F39: 1.342636899 | G39: 0.1402235442 | H39: 1.364770606 | I39: 0.1047197551 | AA39: 2.827433388 | AB39: 0.28 | AC39: 0.58 | AD39: -0.2662958246 | AE39: 0.1792298567
B40: 1.570796327 | C40: 1.09 | D40: 1.39 | E40: 3.087992102e-16 | F40: 1.39 | G40: -0.1452945639 | H40: 1.382385435 | I40: 0.1047197551 | AA40: 3.141592654 | AB40: 0.28 | AC40: 0.58 | AD40: -0.28 | AE40: 7.105861038e-17
B41: 1.832595715 | C41: 1.09 | D41: 1.39 | E41: -0.2821127592 | F41: 1.342636899 | G41: -0.4209110877 | H41: 1.30579298 | I41: 0.1047197551 | AA41: 3.455751919 | AB41: 0.28 | AC41: 0.58 | AD41: -0.2662958246 | AE41: -0.1792298567
B42: 2.094395102 | C42: 1.09 | D42: 1.39 | E42: -0.545 | F42: 1.203775311 | G42: -0.6678432164 | H42: 1.140212892 | I42: 0.1047197551 | AA42: 3.769911184 | AB42: 0.28 | AC42: 0.58 | AD42: -0.2265247584 | AE42: -0.3409154463
B43: 2.35619449 | C43: 1.09 | D43: 1.39 | E43: -0.7707463915 | F43: 0.9828784258 | G43: -0.8692629335 | H43: 0.8969291791 | I43: 0.1047197551 | AA43: 4.08407045 | AB43: 0.28 | AC43: 0.58 | AD43: -0.1645798706 | AE43: -0.4692298567
B44: 2.617993878 | C44: 1.09 | D44: 1.39 | E44: -0.9439676901 | F44: 0.695 | G44: -1.011443818 | H44: 0.5925212253 | I44: 0.1047197551 | AA44: 4.398229715 | AB44: 0.28 | AC44: 0.58 | AD44: -0.08652475842 | AE44: -0.5516127795
B45: 2.879793266 | C45: 1.09 | D45: 1.39 | E45: -1.052859151 | F45: 0.3597584727 | G45: -1.084696478 | H45: 0.2477339291 | I45: 0.1047197551 | AA45: 4.71238898 | AB45: 0.28 | AC45: 0.58 | AD45: -5.145623511e-17 | AE45: -0.58
B46: 3.141592654 | C46: 1.09 | D46: 1.39 | E46: -1.09 | F46: -4.469883665e-16 | G46: -1.084028866 | H46: -0.113936025 | I46: 0.1047197551 | AA46: 5.026548246 | AB46: 0.28 | AC46: 0.58 | AD46: 0.08652475842 | AE46: -0.5516127795
B47: 3.403392041 | C47: 1.09 | D47: 1.39 | E47: -1.052859151 | F47: -0.3597584727 | G47: -1.009486478 | H47: -0.4678414272 | I47: 0.1047197551 | AA47: 5.340707511 | AB47: 0.28 | AC47: 0.58 | AD47: 0.1645798706 | AE47: -0.4692298567
B48: 3.665191429 | C48: 1.09 | D48: 1.39 | E48: -0.9439676901 | F48: -0.695 | G48: -0.8661492544 | H48: -0.7898642093 | I48: 0.1047197551 | AA48: 5.654866776 | AB48: =AB47 -> 0.28 | AC48: 0.58 | AD48: 0.2265247584 | AE48: -0.3409154463
B49: 3.926990817 | C49: 1.09 | D49: 1.39 | E49: -0.7707463915 | F49: -0.9828784258 | G49: -0.6637853907 | H49: -1.058059051 | I49: 0.1047197551 | AA49: 5.969026042 | AB49: 0.28 | AC49: 0.58 | AD49: 0.2662958246 | AE49: -0.1792298567
B50: 4.188790205 | C50: 1.09 | D50: 1.39 | E50: -0.545 | F50: -1.203775311 | G50: -0.4161856496 | H50: -1.254148917 | I50: 0.1047197551 | AA50: 6.283185307 | AB50: 0.28 | AC50: 0.58 | AD50: 0.28 | AE50: -1.421172208e-16
B51: 4.450589593 | C51: 1.09 | D51: 1.39 | E51: -0.2821127592 | F51: -1.342636899 | G51: -0.1402235442 | H51: -1.364770606 | I51: 0.1047197551
B52: 4.71238898 | C52: 1.09 | D52: 1.39 | E52: -2.003117724e-16 | F52: -1.39 | G52: 0.1452945639 | H52: -1.382385435 | I52: 0.1047197551 | AA52: 0 | AB52: =AB50+$AB$6 -> 0.36 | AC52: =AC50+$AB$6 -> 0.66 | AD52: =AB52*COS(AA52) -> 0.36 | AE52: =AC52*SIN(AA52) -> 0
B53: 4.974188368 | C53: 1.09 | D53: 1.39 | E53: 0.2821127592 | F53: -1.342636899 | G53: 0.4209110877 | H53: -1.30579298 | I53: 0.1047197551 | AA53: =AA52+PI()/10 -> 0.3141592654 | AB53: =AB52 -> 0.36 | AC53: =AC52 -> 0.66 | AD53: 0.3423803459 | AE53: 0.2039512163
B54: 5.235987756 | C54: 1.09 | D54: 1.39 | E54: 0.545 | F54: -1.203775311 | G54: 0.6678432164 | H54: -1.140212892 | I54: 0.1047197551 | AA54: =AA53+PI()/10 -> 0.6283185307 | AB54: =AB53 -> 0.36 | AC54: 0.66 | AD54: 0.291246118 | AE54: 0.3879382665
B55: 5.497787144 | C55: 1.09 | D55: 1.39 | E55: 0.7707463915 | F55: -0.9828784258 | G55: 0.8692629335 | H55: -0.8969291791 | I55: 0.1047197551 | AA55: 0.9424777961 | AB55: =AB54 -> 0.36 | AC55: 0.66 | AD55: 0.2116026908 | AE55: 0.5339512163
B56: 5.759586532 | C56: 1.09 | D56: 1.39 | E56: 0.9439676901 | F56: -0.695 | G56: 1.011443818 | H56: -0.5925212253 | I56: 0.1047197551 | AA56: 1.256637061 | AB56: =AB55 -> 0.36 | AC56: 0.66 | AD56: 0.111246118 | AE56: 0.6276973008
B57: 6.021385919 | C57: 1.09 | D57: 1.39 | E57: 1.052859151 | F57: -0.3597584727 | G57: 1.084696478 | H57: -0.2477339291 | I57: 0.1047197551 | AA57: 1.570796327 | AB57: =AB56 -> 0.36 | AC57: 0.66 | AD57: 2.205267219e-17 | AE57: 0.66
B58: 6.283185307 | C58: 1.09 | D58: 1.39 | E58: 1.09 | F58: -2.809727277e-15 | G58: 1.084028866 | H58: 0.113936025 | I58: 0.1047197551 | AA58: 1.884955592 | AB58: =AB57 -> 0.36 | AC58: 0.66 | AD58: -0.111246118 | AE58: 0.6276973008
AA59: 2.199114858 | AB59: =AB58 -> 0.36 | AC59: 0.66 | AD59: -0.2116026908 | AE59: 0.5339512163
A60: =A34+1 -> 3 | B60: 0 | C60: =C58+$C$6 -> 1.18 | D60: =D58+$C$6 -> 1.48 | E60: =C60*COS(B60) -> 1.18 | F60: =D60*SIN(B60) -> 0 | G60: =E60*COS(I60)-F60*SIN(I60) -> 1.154214169 | H60: =E60*SIN(I60)+F60*COS(I60) -> 0.2453357952 | I60: =I58+$I$6 -> 0.2094395102 | AA60: 2.513274123 | AB60: =AB59 -> 0.36 | AC60: 0.66 | AD60: -0.291246118 | AE60: 0.3879382665
B61: =B60+PI()/12 -> 0.2617993878 | C61: =C60 -> 1.18 | D61: 1.48 | E61: =C61*COS(B61) -> 1.139792475 | F61: =D61*SIN(B61) -> 0.3830521868 | G61: =E61*COS(I61)-F61*SIN(I61) -> 1.035244247 | H61: =E61*SIN(I61)+F61*COS(I61) -> 0.6116577581 | I61: =I60 -> 0.2094395102 | AA61: 2.827433388 | AB61: =AB60 -> 0.36 | AC61: 0.66 | AD61: -0.3423803459 | AE61: 0.2039512163
B62: =B61+PI()/12 -> 0.5235987756 | C62: 1.18 | D62: 1.48 | E62: =C62*COS(B62) -> 1.021909976 | F62: =D62*SIN(B62) -> 0.74 | G62: =E62*COS(I62)-F62*SIN(I62) -> 0.8457241404 | H62: =E62*SIN(I62)+F62*COS(I62) -> 0.9362962556 | I62: 0.2094395102 | AA62: 3.141592654 | AB62: =AB61 -> 0.36 | AC62: 0.66 | AD62: -0.36 | AE62: 8.085979802e-17
B63: 0.7853981634 | C63: 1.18 | D63: 1.48 | E63: 0.8343860018 | F63: 1.046518036 | G63: 0.5985693314 | H63: 1.197127711 | I63: 0.2094395102 | AA63: 3.455751919 | AB63: =AB62 -> 0.36 | AC63: 0.66 | AD63: -0.3423803459 | AE63: -0.2039512163
B64: 1.047197551 | C64: 1.18 | D64: 1.48 | E64: 0.59 | F64: 1.281717598 | G64: 0.3106230116 | H64: 1.37637689 | I64: 0.2094395102 | AA64: 3.769911184 | AB64: =AB63 -> 0.36 | AC64: 0.66 | AD64: -0.291246118 | AE64: -0.3879382665
B65: 1.308996939 | C65: 1.18 | D65: 1.48 | E65: 0.3054064732 | F65: 1.429570223 | G65: 0.001508246842 | H65: 1.46182826 | I65: 0.2094395102 | AA65: 4.08407045 | AB65: =AB64 -> 0.36 | AC65: 0.66 | AD65: -0.2116026908 | AE65: -0.5339512163
B66: 1.570796327 | C66: 1.18 | D66: 1.48 | E66: 3.342963927e-16 | F66: 1.48 | G66: -0.3077093024 | H66: 1.447658449 | I66: 0.2094395102 | AA66: 4.398229715 | AB66: =AB65 -> 0.36 | AC66: 0.66 | AD66: -0.111246118 | AE66: -0.6276973008
B67: 1.832595715 | C67: 1.18 | D67: 1.48 | E67: -0.3054064732 | F67: 1.429570223 | G67: -0.5959569712 | H67: 1.334833107 | I67: 0.2094395102 | AA67: 4.71238898 | AB67: =AB66 -> 0.36 | AC67: 0.66 | AD67: -6.615801657e-17 | AE67: -0.66
B68: 2.094395102 | C68: 1.18 | D68: 1.48 | E68: -0.59 | F68: 1.281717598 | G68: -0.8435911573 | H68: 1.131041095 | I68: 0.2094395102 | AA68: 5.026548246 | AB68: =AB67 -> 0.36 | AC68: 0.66 | AD68: 0.111246118 | AE68: -0.6276973008
B69: 2.35619449 | C69: 1.18 | D69: 1.48 | E69: -0.8343860018 | F69: 1.046518036 | G69: -1.033736 | H69: 0.8501705018 | I69: 0.2094395102 | AA69: 5.340707511 | AB69: =AB68 -> 0.36 | AC69: 0.66 | AD69: 0.2116026908 | AE69: -0.5339512163
B70: 2.617993878 | C70: 1.18 | D70: 1.48 | E70: -1.021909976 | F70: 0.74 | G70: -1.153433443 | H70: 0.5113621935 | I70: 0.2094395102 | AA70: 5.654866776 | AB70: =AB69 -> 0.36 | AC70: 0.66 | AD70: 0.291246118 | AE70: -0.3879382665
B71: 2.879793266 | C71: 1.18 | D71: 1.48 | E71: -1.139792475 | F71: 0.3830521868 | G71: -1.194526303 | H71: 0.1377053968 | I71: 0.2094395102 | AA71: 5.969026042 | AB71: =AB70 -> 0.36 | AC71: 0.66 | AD71: 0.3423803459 | AE71: -0.2039512163
B72: 3.141592654 | C72: 1.18 | D72: 1.48 | E72: -1.18 | F72: -4.759300593e-16 | G72: -1.154214169 | H72: -0.2453357952 | I72: 0.2094395102 | AA72: 6.283185307 | AB72: =AB71 -> 0.36 | AC72: 0.66 | AD72: 0.36 | AE72: -1.61719596e-16
B73: 3.403392041 | C73: 1.18 | D73: 1.48 | E73: -1.139792475 | F73: -0.3830521868 | G73: -1.035244247 | H73: -0.6116577581 | I73: 0.2094395102
B74: 3.665191429 | C74: 1.18 | D74: 1.48 | E74: -1.021909976 | F74: -0.74 | G74: -0.8457241404 | H74: -0.9362962556 | I74: 0.2094395102 | AA74: 0 | AB74: =AB72+$AB$6 -> 0.44 | AC74: =AC72+$AB$6 -> 0.74 | AD74: =AB74*COS(AA74) -> 0.44 | AE74: =AC74*SIN(AA74) -> 0
B75: 3.926990817 | C75: 1.18 | D75: 1.48 | E75: -0.8343860018 | F75: -1.046518036 | G75: -0.5985693314 | H75: -1.197127711 | I75: 0.2094395102 | AA75: =AA74+PI()/10 -> 0.3141592654 | AB75: =AB74 -> 0.44 | AC75: =AC74 -> 0.74 | AD75: 0.4184648672 | AE75: 0.2286725758
B76: 4.188790205 | C76: 1.18 | D76: 1.48 | E76: -0.59 | F76: -1.281717598 | G76: -0.3106230116 | H76: -1.37637689 | I76: 0.2094395102 | AA76: =AA75+PI()/10 -> 0.6283185307 | AB76: =AB75 -> 0.44 | AC76: 0.74 | AD76: 0.3559674775 | AE76: 0.4349610867
B77: 4.450589593 | C77: =C76 -> 1.18 | D77: 1.48 | E77: -0.3054064732 | F77: -1.429570223 | G77: -0.001508246842 | H77: -1.46182826 | I77: 0.2094395102 | AA77: 0.9424777961 | AB77: =AB76 -> 0.44 | AC77: 0.74 | AD77: 0.258625511 | AE77: 0.5986725758
B78: 4.71238898 | C78: 1.18 | D78: 1.48 | E78: -2.168512765e-16 | F78: -1.48 | G78: 0.3077093024 | H78: -1.447658449 | I78: 0.2094395102 | AA78: 1.256637061 | AB78: =AB77 -> 0.44 | AC78: 0.74 | AD78: 0.1359674775 | AE78: 0.7037818221
B79: 4.974188368 | C79: 1.18 | D79: 1.48 | E79: 0.3054064732 | F79: -1.429570223 | G79: 0.5959569712 | H79: -1.334833107 | I79: 0.2094395102 | AA79: 1.570796327 | AB79: =AB78 -> 0.44 | AC79: 0.74 | AD79: 2.695326601e-17 | AE79: 0.74
B80: 5.235987756 | C80: 1.18 | D80: 1.48 | E80: 0.59 | F80: -1.281717598 | G80: 0.8435911573 | H80: -1.131041095 | I80: 0.2094395102 | AA80: 1.884955592 | AB80: =AB79 -> 0.44 | AC80: 0.74 | AD80: -0.1359674775 | AE80: 0.7037818221
B81: 5.497787144 | C81: 1.18 | D81: 1.48 | E81: 0.8343860018 | F81: -1.046518036 | G81: 1.033736 | H81: -0.8501705018 | I81: 0.2094395102 | AA81: 2.199114858 | AB81: =AB80 -> 0.44 | AC81: 0.74 | AD81: -0.258625511 | AE81: 0.5986725758
B82: 5.759586532 | C82: 1.18 | D82: 1.48 | E82: 1.021909976 | F82: -0.74 | G82: 1.153433443 | H82: -0.5113621935 | I82: 0.2094395102 | AA82: 2.513274123 | AB82: =AB81 -> 0.44 | AC82: 0.74 | AD82: -0.3559674775 | AE82: 0.4349610867
B83: 6.021385919 | C83: 1.18 | D83: 1.48 | E83: 1.139792475 | F83: -0.3830521868 | G83: 1.194526303 | H83: -0.1377053968 | I83: 0.2094395102 | AA83: 2.827433388 | AB83: =AB82 -> 0.44 | AC83: 0.74 | AD83: -0.4184648672 | AE83: 0.2286725758
B84: 6.283185307 | C84: 1.18 | D84: 1.48 | E84: 1.18 | F84: -2.991652065e-15 | G84: 1.154214169 | H84: 0.2453357952 | I84: 0.2094395102 | AA84: 3.141592654 | AB84: =AB83 -> 0.44 | AC84: 0.74 | AD84: -0.44 | AE84: 9.066098566e-17
AA85: 3.455751919 | AB85: =AB84 -> 0.44 | AC85: 0.74 | AD85: -0.4184648672 | AE85: -0.2286725758
A86: =A60+1 -> 4 | B86: 0 | C86: =C84+$C$6 -> 1.27 | D86: =D84+$C$6 -> 1.57 | E86: =C86*COS(B86) -> 1.27 | F86: =D86*SIN(B86) -> 0 | G86: =E86*COS(I86)-F86*SIN(I86) -> 1.207841776 | H86: =E86*SIN(I86)+F86*COS(I86) -> 0.3924515829 | I86: =I84+$I$6 -> 0.3141592654 | AA86: 3.769911184 | AB86: =AB85 -> 0.44 | AC86: 0.74 | AD86: -0.3559674775 | AE86: -0.4349610867
B87: =B86+PI()/12 -> 0.2617993878 | C87: =C86 -> 1.27 | D87: 1.57 | E87: =C87*COS(B87) -> 1.226725799 | F87: =D87*SIN(B87) -> 0.4063459008 | G87: =E87*COS(I87)-F87*SIN(I87) -> 1.041117776 | H87: =E87*SIN(I87)+F87*COS(I87) -> 0.7655370363 | I87: =I86 -> 0.3141592654 | AA87: 4.08407045 | AB87: =AB86 -> 0.44 | AC87: 0.74 | AD87: -0.258625511 | AE87: -0.5986725758
B88: =B87+PI()/12 -> 0.5235987756 | C88: 1.27 | D88: 1.57 | E88: =C88*COS(B88) -> 1.099852263 | F88: =D88*SIN(B88) -> 0.785 | G88: =E88*COS(I88)-F88*SIN(I88) -> 0.8034433209 | H88: =E88*SIN(I88)+F88*COS(I88) -> 1.086452406 | I88: 0.3141592654 | AA88: 4.398229715 | AB88: =AB87 -> 0.44 | AC88: 0.74 | AD88: -0.1359674775 | AE88: -0.7037818221
B89: 0.7853981634 | C89: 1.27 | D89: 1.57 | E89: 0.8980256121 | F89: 1.110157646 | G89: 0.511015531 | H89: 1.333327839 | I89: 0.3141592654 | AA89: 4.71238898 | AB89: =AB88 -> 0.44 | AC89: 0.74 | AD89: -8.085979802e-17 | AE89: -0.74
B90: 1.047197551 | C90: 1.27 | D90: 1.57 | E90: 0.635 | F90: 1.359659884 | G90: 0.1837628771 | H90: 1.489339184 | I90: 0.3141592654 | AA90: 5.026548246 | AB90: =AB89 -> 0.44 | AC90: 0.74 | AD90: 0.1359674775 | AE90: -0.7037818221
B91: 1.308996939 | C91: 1.27 | D91: 1.57 | E91: 0.3287001873 | F91: 1.516503547 | G91: -0.1560129131 | H91: 1.543854525 | I91: 0.3141592654 | AA91: 5.340707511 | AB91: =AB90 -> 0.44 | AC91: 0.74 | AD91: 0.258625511 | AE91: -0.5986725758
B92: 1.570796327 | C92: 1.27 | D92: 1.57 | E92: 3.597935751e-16 | F92: 1.57 | G92: -0.4851566812 | H92: 1.493158731 | I92: 0.3141592654 | AA92: 5.654866776 | AB92: =AB91 -> 0.44 | AC92: 0.74 | AD92: 0.3559674775 | AE92: -0.4349610867
B93: 1.832595715 | C93: 1.27 | D93: 1.57 | E93: -0.3287001873 | F93: 1.516503547 | G93: -0.7812378232 | H93: 1.340706637 | I93: 0.3141592654 | AA93: 5.969026042 | AB93: =AB92 -> 0.44 | AC93: 0.74 | AD93: 0.4184648672 | AE93: -0.2286725758
B94: 2.094395102 | C94: 1.27 | D94: 1.57 | E94: -0.635 | F94: 1.359659884 | G94: -1.024078899 | H94: 1.096887601 | I94: 0.3141592654 | AA94: 6.283185307 | AB94: =AB93 -> 0.44 | AC94: 0.74 | AD94: 0.44 | AE94: -1.813219713e-16
B95: 2.35619449 | C95: 1.27 | D95: 1.57 | E95: -0.8980256121 | F95: 1.110157646 | G95: -1.197130689 | H95: 0.7783174883 | I95: 0.3141592654
B96: 2.617993878 | C96: 1.27 | D96: 1.57 | E96: -1.099852263 | F96: 0.785 | G96: -1.288600002 | H96: 0.4067063248 | I96: 0.3141592654 | AA96: 0 | AB96: =AB94+$AB$6 -> 0.52 | AC96: =AC94+$AB$6 -> 0.82 | AD96: =AB96*COS(AA96) -> 0.52 | AE96: =AC96*SIN(AA96) -> 0
B97: 2.879793266 | C97: 1.27 | D97: 1.57 | E97: -1.226725799 | F97: 0.4063459008 | G97: -1.292253354 | H97: 0.007378797387 | I97: 0.3141592654 | AA97: =AA96+PI()/10 -> 0.3141592654 | AB97: =AB96 -> 0.52 | AC97: =AC96 -> 0.82 | AD97: 0.4945493885 | AE97: 0.2533939354
B98: 3.141592654 | C98: 1.27 | D98: 1.57 | E98: -1.27 | F98: -5.04871752e-16 | G98: -1.207841776 | H98: -0.3924515829 | I98: 0.3141592654 | AA98: =AA97+PI()/10 -> 0.6283185307 | AB98: =AB97 -> 0.52 | AC98: 0.82 | AD98: 0.4206888371 | AE98: 0.4819839069
B99: 3.403392041 | C99: 1.27 | D99: 1.57 | E99: -1.226725799 | F99: -0.4063459008 | G99: -1.041117776 | H99: -0.7655370363 | I99: 0.3141592654 | AA99: 0.9424777961 | AB99: =AB98 -> 0.52 | AC99: 0.82 | AD99: 0.3056483312 | AE99: 0.6633939354
B100: 3.665191429 | C100: 1.27 | D100: 1.57 | E100: -1.099852263 | F100: -0.785 | G100: -0.8034433209 | H100: -1.086452406 | I100: 0.3141592654 | AA100: 1.256637061 | AB100: =AB99 -> 0.52 | AC100: 0.82 | AD100: 0.1606888371 | AE100: 0.7798663434
B101: 3.926990817 | C101: 1.27 | D101: 1.57 | E101: -0.8980256121 | F101: -1.110157646 | G101: -0.511015531 | H101: -1.333327839 | I101: 0.3141592654 | AA101: 1.570796327 | AB101: =AB100 -> 0.52 | AC101: 0.82 | AD101: 3.185385983e-17 | AE101: 0.82
B102: 4.188790205 | C102: 1.27 | D102: 1.57 | E102: -0.635 | F102: -1.359659884 | G102: -0.1837628771 | H102: -1.489339184 | I102: 0.3141592654 | AA102: 1.884955592 | AB102: =AB101 -> 0.52 | AC102: 0.82 | AD102: -0.1606888371 | AE102: 0.7798663434
B103: 4.450589593 | C103: =C102 -> 1.27 | D103: 1.57 | E103: -0.3287001873 | F103: -1.516503547 | G103: 0.1560129131 | H103: -1.543854525 | I103: 0.3141592654 | AA103: 2.199114858 | AB103: =AB102 -> 0.52 | AC103: 0.82 | AD103: -0.3056483312 | AE103: 0.6633939354
B104: 4.71238898 | C104: 1.27 | D104: 1.57 | E104: -2.333907807e-16 | F104: -1.57 | G104: 0.4851566812 | H104: -1.493158731 | I104: 0.3141592654 | AA104: 2.513274123 | AB104: =AB103 -> 0.52 | AC104: 0.82 | AD104: -0.4206888371 | AE104: 0.4819839069
B105: 4.974188368 | C105: 1.27 | D105: 1.57 | E105: 0.3287001873 | F105: -1.516503547 | G105: 0.7812378232 | H105: -1.340706637 | I105: 0.3141592654 | AA105: 2.827433388 | AB105: =AB104 -> 0.52 | AC105: 0.82 | AD105: -0.4945493885 | AE105: 0.2533939354
B106: 5.235987756 | C106: 1.27 | D106: 1.57 | E106: 0.635 | F106: -1.359659884 | G106: 1.024078899 | H106: -1.096887601 | I106: 0.3141592654 | AA106: 3.141592654 | AB106: =AB105 -> 0.52 | AC106: 0.82 | AD106: -0.52 | AE106: 1.004621733e-16
B107: 5.497787144 | C107: 1.27 | D107: 1.57 | E107: 0.8980256121 | F107: -1.110157646 | G107: 1.197130689 | H107: -0.7783174883 | I107: 0.3141592654 | AA107: 3.455751919 | AB107: =AB106 -> 0.52 | AC107: 0.82 | AD107: -0.4945493885 | AE107: -0.2533939354
B108: 5.759586532 | C108: 1.27 | D108: 1.57 | E108: 1.099852263 | F108: -0.785 | G108: 1.288600002 | H108: -0.4067063248 | I108: 0.3141592654 | AA108: 3.769911184 | AB108: =AB107 -> 0.52 | AC108: 0.82 | AD108: -0.4206888371 | AE108: -0.4819839069
B109: 6.021385919 | C109: 1.27 | D109: 1.57 | E109: 1.226725799 | F109: -0.4063459008 | G109: 1.292253354 | H109: -0.007378797387 | I109: 0.3141592654 | AA109: 4.08407045 | AB109: =AB108 -> 0.52 | AC109: 0.82 | AD109: -0.3056483312 | AE109: -0.6633939354
B110: 6.283185307 | C110: 1.27 | D110: 1.57 | E110: 1.27 | F110: -3.173576853e-15 | G110: 1.207841776 | H110: 0.3924515829 | I110: 0.3141592654 | AA110: 4.398229715 | AB110: =AB109 -> 0.52 | AC110: 0.82 | AD110: -0.1606888371 | AE110: -0.7798663434
AA111: 4.71238898 | AB111: =AB110 -> 0.52 | AC111: 0.82 | AD111: -9.556157948e-17 | AE111: -0.82
A112: =A86+1 -> 5 | B112: 0 | C112: =C110+$C$6 -> 1.36 | D112: =D110+$C$6 -> 1.66 | E112: =C112*COS(B112) -> 1.36 | F112: =D112*SIN(B112) -> 0 | G112: =E112*COS(I112)-F112*SIN(I112) -> 1.242421822 | H112: =E112*SIN(I112)+F112*COS(I112) -> 0.5531618346 | I112: =I110+$I$6 -> 0.4188790205 | AA112: 5.026548246 | AB112: =AB111 -> 0.52 | AC112: 0.82 | AD112: 0.1606888371 | AE112: -0.7798663434
B113: =B112+PI()/12 -> 0.2617993878 | C113: =C112 -> 1.36 | D113: 1.66 | E113: =C113*COS(B113) -> 1.313659124 | F113: =D113*SIN(B113) -> 0.4296396149 | G113: =E113*COS(I113)-F113*SIN(I113) -> 1.025337151 | H113: =E113*SIN(I113)+F113*COS(I113) -> 0.9268086207 | I113: =I112 -> 0.4188790205 | AA113: 5.340707511 | AB113: =AB112 -> 0.52 | AC113: 0.82 | AD113: 0.3056483312 | AE113: -0.6633939354
B114: =B113+PI()/12 -> 0.5235987756 | C114: 1.36 | D114: 1.66 | E114: =C114*COS(B114) -> 1.177794549 | F114: =D114*SIN(B114) -> 0.83 | G114: =E114*COS(I114)-F114*SIN(I114) -> 0.7383774467 | H114: =E114*SIN(I114)+F114*COS(I114) -> 1.237294931 | I114: 0.4188790205 | AA114: 5.654866776 | AB114: =AB113 -> 0.52 | AC114: 0.82 | AD114: 0.4206888371 | AE114: -0.4819839069
B115: 0.7853981634 | C115: 1.36 | D115: 1.66 | E115: 0.9616652224 | F115: 1.173797257 | G115: 0.4010985398 | H115: 1.463461636 | I115: 0.4188790205 | AA115: 5.969026042 | AB115: =AB114 -> 0.52 | AC115: 0.82 | AD115: 0.4945493885 | AE115: -0.2533939354
B116: 1.047197551 | C116: 1.36 | D116: 1.66 | E116: 0.68 | F116: 1.43760217 | G116: 0.03648543038 | H116: 1.58989585 | I116: 0.4188790205 | AA116: 6.283185307 | AB116: =AB115 -> 0.52 | AC116: 0.82 | AD116: 0.52 | AE116: -2.009243466e-16
B117: 1.308996939 | C117: 1.36 | D117: 1.66 | E117: 0.3519939013 | F117: 1.603436872 | G117: -0.3306141009 | H117: 1.607981289 | I117: 0.4188790205
B118: 1.570796327 | C118: 1.36 | D118: 1.66 | E118: 3.852907576e-16 | F118: 1.66 | G118: -0.6751828275 | H118: 1.51648546 | I118: 0.4188790205 | AA118: 0 | AB118: =AB116+$AB$6 -> 0.6 | AC118: =AC116+$AB$6 -> 0.9 | AD118: =AB118*COS(AA118) -> 0.6 | AE118: =AC118*SIN(AA118) -> 0
B119: 1.832595715 | C119: 1.36 | D119: 1.66 | E119: -0.3519939013 | F119: 1.603436872 | G119: -0.9737389602 | H119: 1.321643653 | I119: 0.4188790205 | AA119: =AA118+PI()/10 -> 0.3141592654 | AB119: =AB118 -> 0.6 | AC119: =AC118 -> 0.9 | AD119: 0.5706339098 | AE119: 0.2781152949
B120: 2.094395102 | C120: 1.36 | D120: 1.66 | E120: -0.68 | F120: 1.43760217 | G120: -1.205936392 | H120: 1.036734015 | I120: 0.4188790205 | AA120: =AA119+PI()/10 -> 0.6283185307 | AB120: =AB119 -> 0.6 | AC120: 0.9 | AD120: 0.4854101966 | AE120: 0.5290067271
B121: 2.35619449 | C121: 1.36 | D121: 1.66 | E121: -0.9616652224 | F121: 1.173797257 | G121: -1.355951252 | H121: 0.6811726678 | I121: 0.4188790205 | AA121: 0.9424777961 | AB121: =AB120 -> 0.6 | AC121: 0.9 | AD121: 0.3526711514 | AE121: 0.7281152949
B122: 2.617993878 | C122: 1.36 | D122: 1.66 | E122: -1.177794549 | F122: 0.83 | G122: -1.413560274 | H122: 0.2791905287 | I122: 0.4188790205 | AA122: 1.256637061 | AB122: =AB121 -> 0.6 | AC122: 0.9 | AD122: 0.1854101966 | AE122: 0.8559508647
B123: 2.879793266 | C123: 1.36 | D123: 1.66 | E123: -1.313659124 | F123: 0.4296396149 | G123: -1.3748375 | H123: -0.1418179836 | I123: 0.4188790205 | AA123: 1.570796327 | AB123: =AB122 -> 0.6 | AC123: 0.9 | AD123: 3.675445365e-17 | AE123: 0.9
B124: 3.141592654 | C124: 1.36 | D124: 1.66 | E124: -1.36 | F124: -5.338134448e-16 | G124: -1.242421822 | H124: -0.5531618346 | I124: 0.4188790205 | AA124: 1.884955592 | AB124: =AB123 -> 0.6 | AC124: 0.9 | AD124: -0.1854101966 | AE124: 0.8559508647
B125: 3.403392041 | C125: 1.36 | D125: 1.66 | E125: -1.313659124 | F125: -0.4296396149 | G125: -1.025337151 | H125: -0.9268086207 | I125: 0.4188790205 | AA125: 2.199114858 | AB125: =AB124 -> 0.6 | AC125: 0.9 | AD125: -0.3526711514 | AE125: 0.7281152949
B126: 3.665191429 | C126: 1.36 | D126: 1.66 | E126: -1.177794549 | F126: -0.83 | G126: -0.7383774467 | H126: -1.237294931 | I126: 0.4188790205 | AA126: 2.513274123 | AB126: =AB125 -> 0.6 | AC126: 0.9 | AD126: -0.4854101966 | AE126: 0.5290067271
B127: 3.926990817 | C127: 1.36 | D127: 1.66 | E127: -0.9616652224 | F127: -1.173797257 | G127: -0.4010985398 | H127: -1.463461636 | I127: 0.4188790205 | AA127: 2.827433388 | AB127: =AB126 -> 0.6 | AC127: 0.9 | AD127: -0.5706339098 | AE127: 0.2781152949
B128: 4.188790205 | C128: 1.36 | D128: 1.66 | E128: -0.68 | F128: -1.43760217 | G128: -0.03648543038 | H128: -1.58989585 | I128: 0.4188790205 | AA128: 3.141592654 | AB128: =AB127 -> 0.6 | AC128: 0.9 | AD128: -0.6 | AE128: 1.102633609e-16
B129: 4.450589593 | C129: =C128 -> 1.36 | D129: 1.66 | E129: -0.3519939013 | F129: -1.603436872 | G129: 0.3306141009 | H129: -1.607981289 | I129: 0.4188790205 | AA129: 3.455751919 | AB129: =AB128 -> 0.6 | AC129: 0.9 | AD129: -0.5706339098 | AE129: -0.2781152949
B130: 4.71238898 | C130: 1.36 | D130: 1.66 | E130: -2.499302848e-16 | F130: -1.66 | G130: 0.6751828275 | H130: -1.51648546 | I130: 0.4188790205 | AA130: 3.769911184 | AB130: =AB129 -> 0.6 | AC130: 0.9 | AD130: -0.4854101966 | AE130: -0.5290067271
B131: 4.974188368 | C131: 1.36 | D131: 1.66 | E131: 0.3519939013 | F131: -1.603436872 | G131: 0.9737389602 | H131: -1.321643653 | I131: 0.4188790205 | AA131: 4.08407045 | AB131: =AB130 -> 0.6 | AC131: 0.9 | AD131: -0.3526711514 | AE131: -0.7281152949
B132: 5.235987756 | C132: 1.36 | D132: 1.66 | E132: 0.68 | F132: -1.43760217 | G132: 1.205936392 | H132: -1.036734015 | I132: 0.4188790205 | AA132: 4.398229715 | AB132: =AB131 -> 0.6 | AC132: 0.9 | AD132: -0.1854101966 | AE132: -0.8559508647
B133: 5.497787144 | C133: 1.36 | D133: 1.66 | E133: 0.9616652224 | F133: -1.173797257 | G133: 1.355951252 | H133: -0.6811726678 | I133: 0.4188790205 | AA133: 4.71238898 | AB133: =AB132 -> 0.6 | AC133: 0.9 | AD133: -1.102633609e-16 | AE133: -0.9
B134: 5.759586532 | C134: 1.36 | D134: 1.66 | E134: 1.177794549 | F134: -0.83 | G134: 1.413560274 | H134: -0.2791905287 | I134: 0.4188790205 | AA134: 5.026548246 | AB134: =AB133 -> 0.6 | AC134: 0.9 | AD134: 0.1854101966 | AE134: -0.8559508647
B135: 6.021385919 | C135: 1.36 | D135: 1.66 | E135: 1.313659124 | F135: -0.4296396149 | G135: 1.3748375 | H135: 0.1418179836 | I135: 0.4188790205 | AA135: 5.340707511 | AB135: =AB134 -> 0.6 | AC135: 0.9 | AD135: 0.3526711514 | AE135: -0.7281152949
B136: 6.283185307 | C136: 1.36 | D136: 1.66 | E136: 1.36 | F136: -3.35550164e-15 | G136: 1.242421822 | H136: 0.5531618346 | I136: 0.4188790205 | AA136: 5.654866776 | AB136: =AB135 -> 0.6 | AC136: 0.9 | AD136: 0.4854101966 | AE136: -0.5290067271
AA137: 5.969026042 | AB137: =AB136 -> 0.6 | AC137: 0.9 | AD137: 0.5706339098 | AE137: -0.2781152949
A138: =A112+1 -> 6 | B138: 0 | C138: =C136+$C$6 -> 1.45 | D138: =D136+$C$6 -> 1.75 | E138: =C138*COS(B138) -> 1.45 | F138: =D138*SIN(B138) -> 0 | G138: =E138*COS(I138)-F138*SIN(I138) -> 1.255736835 | H138: =E138*SIN(I138)+F138*COS(I138) -> 0.725 | I138: =I136+$I$6 -> 0.5235987756 | AA138: 6.283185307 | AB138: =AB137 -> 0.6 | AC138: 0.9 | AD138: 0.6 | AE138: -2.205267219e-16
B139: =B138+PI()/12 -> 0.2617993878 | C139: =C138 -> 1.45 | D139: 1.75 | E139: =C139*COS(B139) -> 1.400592448 | F139: =D139*SIN(B139) -> 0.4529333289 | G139: =E139*COS(I139)-F139*SIN(I139) -> 0.986481976 | H139: =E139*SIN(I139)+F139*COS(I139) -> 1.092547993 | I139: =I138 -> 0.5235987756
B140: =B139+PI()/12 -> 0.5235987756 | C140: 1.45 | D140: 1.75 | E140: =C140*COS(B140) -> 1.255736835 | F140: =D140*SIN(B140) -> 0.875 | G140: =E140*COS(I140)-F140*SIN(I140) -> 0.65 | H140: =E140*SIN(I140)+F140*COS(I140) -> 1.385640646 | I140: 0.5235987756 | AA140: 0 | AB140: =AB138+$AB$6 -> 0.68 | AC140: =AC138+$AB$6 -> 0.98 | AD140: =AB140*COS(AA140) -> 0.68 | AE140: =AC140*SIN(AA140) -> 0
B141: 0.7853981634 | C141: 1.45 | D141: 1.75 | E141: 1.025304833 | F141: 1.237436867 | G141: 0.2692215982 | H141: 1.584304179 | I141: 0.5235987756 | AA141: =AA140+PI()/10 -> 0.3141592654 | AB141: =AB140 -> 0.68 | AC141: =AC140 -> 0.98 | AD141: 0.6467184311 | AE141: 0.3028366545
B142: 1.047197551 | C142: 1.45 | D142: 1.75 | E142: 0.725 | F142: 1.515544457 | G142: -0.1299038106 | H142: 1.675 | I142: 0.5235987756 | AA142: =AA141+PI()/10 -> 0.6283185307 | AB142: =AB141 -> 0.68 | AC142: 0.98 | AD142: 0.5501315562 | AE142: 0.5760295472
B143: 1.308996939 | C143: 1.45 | D143: 1.75 | E143: 0.3752876154 | F143: 1.690370196 | G143: -0.5201764893 | H143: 1.651547339 | I143: 0.5235987756 | AA143: 0.9424777961 | AB143: =AB142 -> 0.68 | AC143: 0.98 | AD143: 0.3996939716 | AE143: 0.7928366545
B144: 1.570796327 | C144: 1.45 | D144: 1.75 | E144: 4.107879401e-16 | F144: 1.75 | G144: -0.875 | H144: 1.515544457 | I144: 0.5235987756 | AA144: 1.256637061 | AB144: =AB143 -> 0.68 | AC144: 0.98 | AD144: 0.2101315562 | AE144: 0.932035386
B145: 1.832595715 | C145: 1.45 | D145: 1.75 | E145: -0.3752876154 | F145: 1.690370196 | G145: -1.170193707 | H145: 1.276259724 | I145: 0.5235987756 | AA145: 1.570796327 | AB145: =AB144 -> 0.68 | AC145: 0.98 | AD145: 4.165504747e-17 | AE145: 0.98
B146: 2.094395102 | C146: 1.45 | D146: 1.75 | E146: -0.725 | F146: 1.515544457 | G146: -1.385640646 | H146: 0.95 | I146: 0.5235987756 | AA146: 1.884955592 | AB146: =AB145 -> 0.68 | AC146: 0.98 | AD146: -0.2101315562 | AE146: 0.932035386
B147: 2.35619449 | C147: 1.45 | D147: 1.75 | E147: -1.025304833 | F147: 1.237436867 | G147: -1.506658465 | H147: 0.5589993461 | I147: 0.5235987756 | AA147: 2.199114858 | AB147: =AB146 -> 0.68 | AC147: 0.98 | AD147: -0.3996939716 | AE147: 0.7928366545
B148: 2.617993878 | C148: 1.45 | D148: 1.75 | E148: -1.255736835 | F148: 0.875 | G148: -1.525 | H148: 0.1299038106 | I148: 0.5235987756 | AA148: 2.513274123 | AB148: =AB147 -> 0.68 | AC148: 0.98 | AD148: -0.5501315562 | AE148: 0.5760295472
B149: 2.879793266 | C149: 1.45 | D149: 1.75 | E149: -1.400592448 | F149: 0.4529333289 | G149: -1.439415305 | H149: -0.308044455 | I149: 0.5235987756 | AA149: 2.827433388 | AB149: =AB148 -> 0.68 | AC149: 0.98 | AD149: -0.6467184311 | AE149: 0.3028366545
B150: 3.141592654 | C150: 1.45 | D150: 1.75 | E150: -1.45 | F150: -5.627551376e-16 | G150: -1.255736835 | H150: -0.725 | I150: 0.5235987756 | AA150: 3.141592654 | AB150: =AB149 -> 0.68 | AC150: 0.98 | AD150: -0.68 | AE150: 1.200645486e-16
B151: 3.403392041 | C151: 1.45 | D151: 1.75 | E151: -1.400592448 | F151: -0.4529333289 | G151: -0.986481976 | H151: -1.092547993 | I151: 0.5235987756 | AA151: 3.455751919 | AB151: =AB150 -> 0.68 | AC151: 0.98 | AD151: -0.6467184311 | AE151: -0.3028366545
B152: 3.665191429 | C152: 1.45 | D152: 1.75 | E152: -1.255736835 | F152: -0.875 | G152: -0.65 | H152: -1.385640646 | I152: 0.5235987756 | AA152: 3.769911184 | AB152: =AB151 -> 0.68 | AC152: 0.98 | AD152: -0.5501315562 | AE152: -0.5760295472
B153: 3.926990817 | C153: 1.45 | D153: 1.75 | E153: -1.025304833 | F153: -1.237436867 | G153: -0.2692215982 | H153: -1.584304179 | I153: 0.5235987756 | AA153: 4.08407045 | AB153: =AB152 -> 0.68 | AC153: 0.98 | AD153: -0.3996939716 | AE153: -0.7928366545
B154: 4.188790205 | C154: 1.45 | D154: 1.75 | E154: -0.725 | F154: -1.515544457 | G154: 0.1299038106 | H154: -1.675 | I154: 0.5235987756 | AA154: 4.398229715 | AB154: =AB153 -> 0.68 | AC154: 0.98 | AD154: -0.2101315562 | AE154: -0.932035386
B155: 4.450589593 | C155: =C154 -> 1.45 | D155: 1.75 | E155: -0.3752876154 | F155: -1.690370196 | G155: 0.5201764893 | H155: -1.651547339 | I155: 0.5235987756 | AA155: 4.71238898 | AB155: =AB154 -> 0.68 | AC155: 0.98 | AD155: -1.249651424e-16 | AE155: -0.98
B156: 4.71238898 | C156: 1.45 | D156: 1.75 | E156: -2.664697889e-16 | F156: -1.75 | G156: 0.875 | H156: -1.515544457 | I156: 0.5235987756 | AA156: 5.026548246 | AB156: =AB155 -> 0.68 | AC156: 0.98 | AD156: 0.2101315562 | AE156: -0.932035386
B157: 4.974188368 | C157: 1.45 | D157: 1.75 | E157: 0.3752876154 | F157: -1.690370196 | G157: 1.170193707 | H157: -1.276259724 | I157: 0.5235987756 | AA157: 5.340707511 | AB157: =AB156 -> 0.68 | AC157: 0.98 | AD157: 0.3996939716 | AE157: -0.7928366545
B158: 5.235987756 | C158: 1.45 | D158: 1.75 | E158: 0.725 | F158: -1.515544457 | G158: 1.385640646 | H158: -0.95 | I158: 0.5235987756 | AA158: 5.654866776 | AB158: =AB157 -> 0.68 | AC158: 0.98 | AD158: 0.5501315562 | AE158: -0.5760295472
B159: 5.497787144 | C159: 1.45 | D159: 1.75 | E159: 1.025304833 | F159: -1.237436867 | G159: 1.506658465 | H159: -0.5589993461 | I159: 0.5235987756 | AA159: 5.969026042 | AB159: =AB158 -> 0.68 | AC159: 0.98 | AD159: 0.6467184311 | AE159: -0.3028366545
B160: 5.759586532 | C160: 1.45 | D160: 1.75 | E160: 1.255736835 | F160: -0.875 | G160: 1.525 | H160: -0.1299038106 | I160: 0.5235987756 | AA160: 6.283185307 | AB160: =AB159 -> 0.68 | AC160: 0.98 | AD160: 0.68 | AE160: -2.401290972e-16
B161: 6.021385919 | C161: 1.45 | D161: 1.75 | E161: 1.400592448 | F161: -0.4529333289 | G161: 1.439415305 | H161: 0.308044455 | I161: 0.5235987756
B162: 6.283185307 | C162: 1.45 | D162: 1.75 | E162: 1.45 | F162: -3.537426428e-15 | G162: 1.255736835 | H162: 0.725 | I162: 0.5235987756 | AA162: 0 | AB162: =AB160+$AB$6 -> 0.76 | AC162: =AC160+$AB$6 -> 1.06 | AD162: =AB162*COS(AA162) -> 0.76 | AE162: =AC162*SIN(AA162) -> 0
AA163: =AA162+PI()/10 -> 0.3141592654 | AB163: =AB162 -> 0.76 | AC163: =AC162 -> 1.06 | AD163: 0.7228029524 | AE163: 0.327558014
A164: =A138+1 -> 7 | B164: 0 | C164: =C162+$C$6 -> 1.54 | D164: =D162+$C$6 -> 1.84 | E164: =C164*COS(B164) -> 1.54 | F164: =D164*SIN(B164) -> 0 | G164: =E164*COS(I164)-F164*SIN(I164) -> 1.245886171 | H164: =E164*SIN(I164)+F164*COS(I164) -> 0.9051892885 | I164: =I162+$I$6 -> 0.6283185307 | AA164: =AA163+PI()/10 -> 0.6283185307 | AB164: =AB163 -> 0.76 | AC164: 1.06 | AD164: 0.6148529157 | AE164: 0.6230523674
B165: =B164+PI()/12 -> 0.2617993878 | C165: =C164 -> 1.54 | D165: 1.84 | E165: =C165*COS(B165) -> 1.487525772 | F165: =D165*SIN(B165) -> 0.476227043 | G165: =E165*COS(I165)-F165*SIN(I165) -> 0.9235143969 | H165: =E165*SIN(I165)+F165*COS(I165) -> 1.259621482 | I165: =I164 -> 0.6283185307 | AA165: 0.9424777961 | AB165: =AB164 -> 0.76 | AC165: 1.06 | AD165: 0.4467167917 | AE165: 0.857558014
B166: =B165+PI()/12 -> 0.5235987756 | C166: 1.54 | D166: 1.84 | E166: =C166*COS(B166) -> 1.333679122 | F166: =D166*SIN(B166) -> 0.92 | G166: =E166*COS(I166)-F166*SIN(I166) -> 0.5382066425 | H166: =E166*SIN(I166)+F166*COS(I166) -> 1.528212554 | I166: 0.6283185307 | AA166: 1.256637061 | AB166: =AB165 -> 0.76 | AC166: 1.06 | AD166: 0.2348529157 | AE166: 1.008119907
B167: 0.7853981634 | C167: 1.54 | D167: 1.84 | E167: 1.088944443 | F167: 1.301076477 | G167: 0.1162209948 | H167: 1.692658465 | I167: 0.6283185307 | AA167: 1.570796327 | AB167: =AB166 -> 0.76 | AC167: 1.06 | AD167: 4.655564129e-17 | AE167: 1.06
B168: 1.047197551 | C168: 1.54 | D168: 1.84 | E168: 0.77 | F168: 1.593486743 | G168: -0.3136849216 | H168: 1.7417525 | I168: 0.6283185307 | AA168: 1.884955592 | AB168: =AB167 -> 0.76 | AC168: 1.06 | AD168: -0.2348529157 | AE168: 1.008119907
B169: 1.308996939 | C169: 1.54 | D169: 1.84 | E169: 0.3985813295 | F169: 1.77730352 | G169: -0.722213729 | H169: 1.672148979 | I169: 0.6283185307 | AA169: 2.199114858 | AB169: =AB168 -> 0.76 | AC169: 1.06 | AD169: -0.4467167917 | AE169: 0.857558014
B170: 1.570796327 | C170: 1.54 | D170: 1.84 | E170: 4.362851226e-16 | F170: 1.84 | G170: -1.081524864 | H170: 1.48859127 | I170: 0.6283185307 | AA170: 2.513274123 | AB170: =AB169 -> 0.76 | AC170: 1.06 | AD170: -0.6148529157 | AE170: 0.6230523674
B171: 1.832595715 | C171: 1.54 | D171: 1.84 | E171: -0.3985813295 | F171: 1.77730352 | G171: -1.367131867 | H171: 1.203588525 | I171: 0.6283185307 | AA171: 2.827433388 | AB171: =AB170 -> 0.76 | AC171: 1.06 | AD171: -0.7228029524 | AE171: 0.327558014
B172: 2.094395102 | C172: 1.54 | D172: 1.84 | E172: -0.77 | F172: 1.593486743 | G172: -1.559571093 | H172: 0.8365632111 | I172: 0.6283185307 | AA172: 3.141592654 | AB172: =AB171 -> 0.76 | AC172: 1.06 | AD172: -0.76 | AE172: 1.298657362e-16
B173: 2.35619449 | C173: 1.54 | D173: 1.84 | E173: -1.088944443 | F173: 1.301076477 | G173: -1.645728126 | H173: 0.412527497 | I173: 0.6283185307 | AA173: 3.455751919 | AB173: =AB172 -> 0.76 | AC173: 1.06 | AD173: -0.7228029524 | AE173: -0.327558014
B174: 2.617993878 | C174: 1.54 | D174: 1.84 | E174: -1.333679122 | F174: 0.92 | G174: -1.619731507 | H174: -0.03962128428 | I174: 0.6283185307 | AA174: 3.769911184 | AB174: =AB173 -> 0.76 | AC174: 1.06 | AD174: -0.6148529157 | AE174: -0.6230523674
B175: 2.879793266 | C175: 1.54 | D175: 1.84 | E175: -1.487525772 | F175: 0.476227043 | G175: -1.483352862 | H175: -0.4890699405 | I175: 0.6283185307 | AA175: 4.08407045 | AB175: =AB174 -> 0.76 | AC175: 1.06 | AD175: -0.4467167917 | AE175: -0.857558014
B176: 3.141592654 | C176: 1.54 | D176: 1.84 | E176: -1.54 | F176: -5.916968304e-16 | G176: -1.245886171 | H176: -0.9051892885 | I176: 0.6283185307 | AA176: 4.398229715 | AB176: =AB175 -> 0.76 | AC176: 1.06 | AD176: -0.2348529157 | AE176: -1.008119907
B177: 3.403392041 | C177: 1.54 | D177: 1.84 | E177: -1.487525772 | F177: -0.476227043 | G177: -0.9235143969 | H177: -1.259621482 | I177: 0.6283185307 | AA177: 4.71238898 | AB177: =AB176 -> 0.76 | AC177: 1.06 | AD177: -1.396669239e-16 | AE177: -1.06
B178: 3.665191429 | C178: 1.54 | D178: 1.84 | E178: -1.333679122 | F178: -0.92 | G178: -0.5382066425 | H178: -1.528212554 | I178: 0.6283185307 | AA178: 5.026548246 | AB178: =AB177 -> 0.76 | AC178: 1.06 | AD178: 0.2348529157 | AE178: -1.008119907
B179: 3.926990817 | C179: 1.54 | D179: 1.84 | E179: -1.088944443 | F179: -1.301076477 | G179: -0.1162209948 | H179: -1.692658465 | I179: 0.6283185307 | AA179: 5.340707511 | AB179: =AB178 -> 0.76 | AC179: 1.06 | AD179: 0.4467167917 | AE179: -0.857558014
B180: 4.188790205 | C180: 1.54 | D180: 1.84 | E180: -0.77 | F180: -1.593486743 | G180: 0.3136849216 | H180: -1.7417525 | I180: 0.6283185307 | AA180: 5.654866776 | AB180: =AB179 -> 0.76 | AC180: 1.06 | AD180: 0.6148529157 | AE180: -0.6230523674
B181: 4.450589593 | C181: =C180 -> 1.54 | D181: 1.84 | E181: -0.3985813295 | F181: -1.77730352 | G181: 0.722213729 | H181: -1.672148979 | I181: 0.6283185307 | AA181: 5.969026042 | AB181: =AB180 -> 0.76 | AC181: 1.06 | AD181: 0.7228029524 | AE181: -0.327558014
B182: 4.71238898 | C182: 1.54 | D182: 1.84 | E182: -2.830092931e-16 | F182: -1.84 | G182: 1.081524864 | H182: -1.48859127 | I182: 0.6283185307 | AA182: 6.283185307 | AB182: =AB181 -> 0.76 | AC182: 1.06 | AD182: 0.76 | AE182: -2.597314724e-16
B183: 4.974188368 | C183: 1.54 | D183: 1.84 | E183: 0.3985813295 | F183: -1.77730352 | G183: 1.367131867 | H183: -1.203588525 | I183: 0.6283185307
B184: 5.235987756 | C184: 1.54 | D184: 1.84 | E184: 0.77 | F184: -1.593486743 | G184: 1.559571093 | H184: -0.8365632111 | I184: 0.6283185307 | AA184: 0 | AB184: =AB182+$AB$6 -> 0.84 | AC184: =AC182+$AB$6 -> 1.14 | AD184: =AB184*COS(AA184) -> 0.84 | AE184: =AC184*SIN(AA184) -> 0
B185: 5.497787144 | C185: 1.54 | D185: 1.84 | E185: 1.088944443 | F185: -1.301076477 | G185: 1.645728126 | H185: -0.412527497 | I185: 0.6283185307 | AA185: =AA184+PI()/10 -> 0.3141592654 | AB185: =AB184 -> 0.84 | AC185: =AC184 -> 1.14 | AD185: 0.7988874737 | AE185: 0.3522793736
B186: 5.759586532 | C186: 1.54 | D186: 1.84 | E186: 1.333679122 | F186: -0.92 | G186: 1.619731507 | H186: 0.03962128428 | I186: 0.6283185307 | AA186: =AA185+PI()/10 -> 0.6283185307 | AB186: =AB185 -> 0.84 | AC186: 1.14 | AD186: 0.6795742753 | AE186: 0.6700751876
B187: 6.021385919 | C187: 1.54 | D187: 1.84 | E187: 1.487525772 | F187: -0.476227043 | G187: 1.483352862 | H187: 0.4890699405 | I187: 0.6283185307 | AA187: 0.9424777961 | AB187: =AB186 -> 0.84 | AC187: 1.14 | AD187: 0.4937396119 | AE187: 0.9222793736
B188: 6.283185307 | C188: 1.54 | D188: 1.84 | E188: 1.54 | F188: -3.719351216e-15 | G188: 1.245886171 | H188: 0.9051892885 | I188: 0.6283185307 | AA188: 1.256637061 | AB188: =AB187 -> 0.84 | AC188: 1.14 | AD188: 0.2595742753 | AE188: 1.084204429
AA189: 1.570796327 | AB189: =AB188 -> 0.84 | AC189: 1.14 | AD189: 5.145623511e-17 | AE189: 1.14
A190: =A164+1 -> 8 | B190: 0 | C190: =C188+$C$6 -> 1.63 | D190: =D188+$C$6 -> 1.93 | E190: =C190*COS(B190) -> 1.63 | F190: =D190*SIN(B190) -> 0 | G190: =E190*COS(I190)-F190*SIN(I190) -> 1.211326066 | H190: =E190*SIN(I190)+F190*COS(I190) -> 1.090682888 | I190: =I188+$I$6 -> 0.7330382858 | AA190: 1.884955592 | AB190: =AB189 -> 0.84 | AC190: 1.14 | AD190: -0.2595742753 | AE190: 1.084204429
B191: =B190+PI()/12 -> 0.2617993878 | C191: =C190 -> 1.63 | D191: 1.93 | E191: =C191*COS(B191) -> 1.574459097 | F191: =D191*SIN(B191) -> 0.499520757 | G191: =E191*COS(I191)-F191*SIN(I191) -> 0.8358065037 | H191: =E191*SIN(I191)+F191*COS(I191) -> 1.424735036 | I191: =I190 -> 0.7330382858 | AA191: 2.199114858 | AB191: =AB190 -> 0.84 | AC191: 1.14 | AD191: -0.4937396119 | AE191: 0.9222793736
B192: =B191+PI()/12 -> 0.5235987756 | C192: 1.63 | D192: 1.93 | E192: =C192*COS(B192) -> 1.411621408 | F192: =D192*SIN(B192) -> 0.965 | G192: =E192*COS(I192)-F192*SIN(I192) -> 0.4033281099 | H192: =E192*SIN(I192)+F192*COS(I192) -> 1.661693845 | I192: 0.7330382858 | AA192: 2.513274123 | AB192: =AB191 -> 0.84 | AC192: 1.14 | AD192: -0.6795742753 | AE192: 0.6700751876
B193: 0.7853981634 | C193: 1.63 | D193: 1.93 | E193: 1.152584053 | F193: 1.364716088 | G193: -0.0566364281 | H193: 1.785410965 | I193: 0.7330382858 | AA193: 2.827433388 | AB193: =AB192 -> 0.84 | AC193: 1.14 | AD193: -0.7988874737 | AE193: 0.3522793736
B194: 1.047197551 | C194: 1.63 | D194: 1.93 | E194: 0.815 | F194: 1.671429029 | G194: -0.5127412871 | H194: 1.787455278 | I194: 0.7330382858 | AA194: 3.141592654 | AB194: =AB193 -> 0.84 | AC194: 1.14 | AD194: -0.84 | AE194: 1.396669239e-16
B195: 1.308996939 | C195: 1.63 | D195: 1.93 | E195: 0.4218750435 | F195: 1.864236845 | G195: -0.9339036747 | H195: 1.667687468 | I195: 0.7330382858 | AA195: 3.455751919 | AB195: =AB194 -> 0.84 | AC195: 1.14 | AD195: -0.7988874737 | AE195: -0.3522793736
B196: 1.570796327 | C196: 1.63 | D196: 1.93 | E196: 4.617823051e-16 | F196: 1.93 | G196: -1.29142207 | H196: 1.434269513 | I196: 0.7330382858 | AA196: 3.769911184 | AB196: =AB195 -> 0.84 | AC196: 1.14 | AD196: -0.6795742753 | AE196: -0.6700751876
B197: 1.832595715 | C197: 1.63 | D197: 1.93 | E197: -0.4218750435 | F197: 1.864236845 | G197: -1.560932186 | H197: 1.103108461 | I197: 0.7330382858 | AA197: 4.08407045 | AB197: =AB196 -> 0.84 | AC197: 1.14 | AD197: -0.4937396119 | AE197: -0.9222793736
B198: 2.094395102 | C198: 1.63 | D198: 1.93 | E198: -0.815 | F198: 1.671429029 | G198: -1.724067353 | H198: 0.6967723901 | I198: 0.7330382858 | AA198: 4.398229715 | AB198: =AB197 -> 0.84 | AC198: 1.14 | AD198: -0.2595742753 | AE198: -1.084204429
B199: 2.35619449 | C199: 1.63 | D199: 1.93 | E199: -1.152584053 | F199: 1.364716088 | G199: -1.769710178 | H199: 0.2429524323 | I199: 0.7330382858 | AA199: 4.71238898 | AB199: =AB198 -> 0.84 | AC199: 1.14 | AD199: -1.543687053e-16 | AE199: -1.14
B200: 2.617993878 | C200: 1.63 | D200: 1.93 | E200: -1.411621408 | F200: 0.965 | G200: -1.69475018 | H200: -0.2274243322 | I200: 0.7330382858 | AA200: 5.026548246 | AB200: =AB199 -> 0.84 | AC200: 1.14 | AD200: 0.2595742753 | AE200: -1.084204429
B201: 2.879793266 | C201: 1.63 | D201: 1.93 | E201: -1.574459097 | F201: 0.499520757 | G201: -1.504295758 | H201: -0.6823025043 | I201: 0.7330382858 | AA201: 5.340707511 | AB201: =AB200 -> 0.84 | AC201: 1.14 | AD201: 0.4937396119 | AE201: -0.9222793736
B202: 3.141592654 | C202: 1.63 | D202: 1.93 | E202: -1.63 | F202: -6.206385232e-16 | G202: -1.211326066 | H202: -1.090682888 | I202: 0.7330382858 | AA202: 5.654866776 | AB202: =AB201 -> 0.84 | AC202: 1.14 | AD202: 0.6795742753 | AE202: -0.6700751876
... 395 more rows

Sheet Tabelle2
A1: Erzeugung von Spiralmustern
A3: Um- | B3: Äußerer Teil | I3: Δθ = | K3: Um- | L3: Innerer Teil
A4: lauf- | B4: Δa = Δb = | D4: 0.1 | E4: Unverdreht | G4: Verdreht | I4: 0.11 | K4: lauf- | L4: Δa = Δb = | N4: 0.08 | O4: Unverdreht
A5: Nr. | B5: t | C5: a | D5: b | E5: x | F5: y | G5: x | H5: y | I5: θ | K5: Nr. | L5: t | M5: a | N5: b | O5: x | P5: y
A6: 1 | B6: 0 | C6: 1 | D6: 1.3 | E6: 1 | F6: 0 | G6: 1 | H6: 0 | I6: 0 | K6: 1 | L6: 0 | M6: 0.15 | N6: 0.5 | O6: 0.15 | P6: 0
B7: 0.1570795 | E7: 0.9876883614 | F7: 0.2033646342 | G7: 0.9876883614 | H7: 0.2033646342 | L7: 0.1570795 | O7: 0.1481532542 | P7: 0.078217167
B8: 0.314159 | E8: 0.9510565983 | F8: 0.4017217646 | G8: 0.9510565983 | H8: 0.4017217646 | L8: 0.314159 | O8: 0.1426584897 | P8: 0.154508371
B9: 0.4712385 | E9: 0.8910067049 | F9: 0.5901871886 | G9: 0.8910067049 | H9: 0.5901871886 | L9: 0.4712385 | O9: 0.1336510057 | P9: 0.2269950725
B10: 0.628318 | E10: 0.8090173063 | F10: 0.7641202698 | G10: 0.8090173063 | H10: 0.7641202698 | L10: 0.628318 | O10: 0.1213525959 | P10: 0.2938924115
B11: 0.7853975 | E11: 0.7071072503 | F11: 0.9192382057 | G11: 0.7071072503 | H11: 0.9192382057 | L11: 0.7853975 | O11: 0.1060660875 | P11: 0.353553156
B12: 0.942477 | E12: 0.5877858963 | F12: 1.051721484 | G12: 0.5877858963 | H12: 1.051721484 | L12: 0.942477 | O12: 0.08816788445 | P12: 0.4045082632
B13: 1.0995565 | E13: 0.4539913273 | F13: 1.158307933 | G13: 0.4539913273 | H13: 1.158307933 | L13: 1.0995565 | O13: 0.06809869909 | P13: 0.4455030513
B14: 1.256636 | E14: 0.3090180039 | F14: 1.236373045 | G14: 0.3090180039 | H14: 1.236373045 | L14: 1.256636 | O14: 0.04635270058 | P14: 0.4755280941
B15: 1.4137155 | E15: 0.1564356445 | F15: 1.2839946 | G15: 0.1564356445 | H15: 1.2839946 | L15: 1.4137155 | O15: 0.02346534667 | P15: 0.4938440769
B16: 1.570795 | E16: 1.326794897e-06 | F16: 1.3 | G16: 1.326794897e-06 | H16: 1.3 | L16: 1.570795 | O16: 1.990192345e-07 | P16: 0.5
B17: 1.7278745 | E17: -0.1564330235 | F17: 1.28399514 | G17: -0.1564330235 | H17: 1.28399514 | L17: 1.7278745 | O17: -0.02346495353 | P17: 0.4938442845
B18: 1.884954 | E18: -0.3090154801 | F18: 1.236374111 | G18: -0.3090154801 | H18: 1.236374111 | L18: 1.884954 | O18: -0.04635232202 | P18: 0.4755285041
B19: 2.0420335 | E19: -0.4539889629 | F19: 1.158309499 | G19: -0.4539889629 | H19: 1.158309499 | L19: 2.0420335 | O19: -0.06809834444 | P19: 0.4455036536
B20: 2.199113 | E20: -0.5877837495 | F20: 1.051723512 | G20: -0.5877837495 | H20: 1.051723512 | L20: 2.199113 | O20: -0.08816756243 | P20: 0.4045090431
B21: 2.3561925 | E21: -0.7071053739 | F21: 0.919240645 | G21: -0.7071053739 | H21: 0.919240645 | L21: 2.3561925 | O21: -0.1060658061 | P21: 0.3535540942
B22: 2.513272 | E22: -0.8090157466 | F22: 0.7641230606 | G22: -0.8090157466 | H22: 0.7641230606 | L22: 2.513272 | O22: -0.121352362 | P22: 0.2938934849
B23: 2.6703515 | E23: -0.8910055002 | F23: 0.5901902623 | G23: -0.8910055002 | H23: 0.5901902623 | L23: 2.6703515 | O23: -0.133650825 | P23: 0.2269962547
B24: 2.827431 | E24: -0.9510557783 | F24: 0.4017250454 | G24: -0.9510557783 | H24: 0.4017250454 | L24: 2.827431 | O24: -0.1426583667 | P24: 0.1545096329
B25: 2.9845105 | E25: -0.9876879462 | F25: 0.2033680414 | G25: -0.9876879462 | H25: 0.2033680414 | L25: 2.9845105 | O25: -0.1481531919 | P25: 0.07821847746
B26: 3.14159 | E26: -1 | F26: 3.449666731e-06 | G26: -1 | H26: 3.449666731e-06 | L26: 3.14159 | O26: -0.15 | P26: 1.326794897e-06
B27: 3.2986695 | E27: -0.9876887765 | F27: -0.203361227 | G27: -0.9876887765 | H27: -0.203361227 | L27: 3.2986695 | O27: -0.1481533165 | P27: -0.07821585654
B28: 3.455749 | E28: -0.9510574183 | F28: -0.4017184838 | G28: -0.9510574183 | H28: -0.4017184838 | L28: 3.455749 | O28: -0.1426586127 | P28: -0.1545071091
B29: 3.6128285 | E29: -0.8910079096 | F29: -0.5901841149 | G29: -0.8910079096 | H29: -0.5901841149 | L29: 3.6128285 | O29: -0.1336511864 | P29: -0.2269938904
B30: 3.769908 | E30: -0.8090188661 | F30: -0.764117479 | G30: -0.8090188661 | H30: -0.764117479 | L30: 3.769908 | O30: -0.1213528299 | P30: -0.2938913381
B31: 3.9269875 | E31: -0.7071091266 | F31: -0.9192357664 | G31: -0.7071091266 | H31: -0.9192357664 | L31: 3.9269875 | O31: -0.106066369 | P31: -0.3535522179
B32: 4.084067 | E32: -0.5877880431 | F32: -1.051719457 | G32: -0.5877880431 | H32: -1.051719457 | L32: 4.084067 | O32: -0.08816820647 | P32: -0.4045074834
B33: 4.2411465 | E33: -0.4539936916 | F33: -1.158306367 | G33: -0.4539936916 | H33: -1.158306367 | L33: 4.2411465 | O33: -0.06809905374 | P33: -0.4455024489
B34: 4.398226 | E34: -0.3090205276 | F34: -1.236371979 | G34: -0.3090205276 | H34: -1.236371979 | L34: 4.398226 | O34: -0.04635307914 | P34: -0.4755276841
B35: 4.5553055 | E35: -0.1564382654 | F35: -1.28399406 | G35: -0.1564382654 | H35: -1.28399406 | L35: 4.5553055 | O35: -0.02346573981 | P35: -0.4938438693
B36: 4.712385 | E36: -3.98038469e-06 | F36: -1.3 | G36: -3.98038469e-06 | H36: -1.3 | L36: 4.712385 | O36: -5.970577036e-07 | P36: -0.5
B37: 4.8694645 | E37: 0.1564304026 | F37: -1.283995679 | G37: 0.1564304026 | H37: -1.283995679 | L37: 4.8694645 | O37: 0.02346456039 | P37: -0.493844492
B38: 5.026544 | E38: 0.3090129564 | F38: -1.236375177 | G38: 0.3090129564 | H38: -1.236375177 | L38: 5.026544 | O38: 0.04635194346 | P38: -0.4755289141
B39: 5.1836235 | E39: 0.4539865985 | F39: -1.158311066 | G39: 0.4539865985 | H39: -1.158311066 | L39: 5.1836235 | O39: 0.06809798978 | P39: -0.445504256
B40: 5.340703 | E40: 0.5877816027 | F40: -1.05172554 | G40: 0.5877816027 | H40: -1.05172554 | L40: 5.340703 | O40: 0.08816724041 | P40: -0.404509823
B41: 5.4977825 | E41: 0.7071034975 | F41: -0.9192430843 | G41: 0.7071034975 | H41: -0.9192430843 | L41: 5.4977825 | O41: 0.1060655246 | P41: -0.3535550324
B42: 5.654862 | E42: 0.8090141868 | F42: -0.7641258515 | G42: 0.8090141868 | H42: -0.7641258515 | L42: 5.654862 | O42: 0.121352128 | P42: -0.2938945583
B43: 5.8119415 | E43: 0.8910042955 | F43: -0.590193336 | G43: 0.8910042955 | H43: -0.590193336 | L43: 5.8119415 | O43: 0.1336506443 | P43: -0.2269974369
B44: 5.969021 | E44: 0.9510549583 | F44: -0.4017283263 | G44: 0.9510549583 | H44: -0.4017283263 | L44: 5.969021 | O44: 0.1426582437 | P44: -0.1545108947
B45: 6.1261005 | E45: 0.9876875311 | F45: -0.2033714486 | G45: 0.9876875311 | H45: -0.2033714486 | L45: 6.1261005 | O45: 0.1481531297 | P45: -0.07821978792
B46: 6.28318 | E46: 1 | F46: -6.899333463e-06 | G46: 1 | H46: -6.899333463e-06 | L46: 6.28318 | O46: 0.15 | P46: -2.653589793e-06
A48: 2 | B48: 0 | C48: 1.1 | D48: 1.4 | E48: 1.1 | F48: 0 | G48: 1.093351708 | H48: 0.1207561309 | I48: 0.11 | K48: 2 | L48: 0 | M48: 0.23 | N48: 0.58 | O48: 0.23 | P48: 0
B49: 0.1570795 | E49: 1.086457197 | F49: 0.2190080676 | G49: 1.055848423 | H49: 0.3369538294 | L49: 0.1570795 | O49: 0.2271683231 | P49: 0.09073191372
B50: 0.314159 | E50: 1.046162258 | F50: 0.4326234388 | G50: 0.9923466899 | H50: 0.5448546202 | L50: 0.314159 | O50: 0.2187430176 | P50: 0.1792297104
B51: 0.4712385 | E51: 0.9801073754 | F51: 0.6355862031 | G51: 0.904410129 | H51: 0.7393393047 | L51: 0.4712385 | O51: 0.2049315421 | P51: 0.2633142841
B52: 0.628318 | E52: 0.889919037 | F52: 0.8228987521 | G52: 0.7942040267 | H52: 0.9156190324 | L52: 0.628318 | O52: 0.1860739805 | P52: 0.3409151973
B53: 0.7853975 | E53: 0.7778179753 | F53: 0.9899488369 | G53: 0.6644420184 | H53: 1.069353219 | L53: 0.7853975 | O53: 0.1626346676 | P53: 0.410121661
B54: 0.942477 | E54: 0.646564486 | F54: 1.132623137 | G54: 0.5183192701 | H54: 1.196756424 | L54: 0.942477 | O54: 0.1351907562 | P54: 0.4692295853
B55: 1.0995565 | E55: 0.49939046 | F55: 1.247408544 | G55: 0.3594338026 | H55: 1.294691565 | L55: 1.0995565 | O55: 0.1044180053 | P55: 0.5167835395
B56: 1.256636 | E56: 0.3399198042 | F56: 1.331478664 | G56: 0.191697897 | H56: 1.360747156 | L56: 1.256636 | O56: 0.07107414089 | P56: 0.5516125892
B57: 1.4137155 | E57: 0.1720792089 | F57: 1.382763415 | G57: 0.01924176082 | H57: 1.393296692 | L57: 1.4137155 | O57: 0.03598019822 | P57: 0.5728591292
B58: 1.570795 | E58: 1.459474386e-06 | F58: 1.4 | G58: -0.1536881705 | H58: 1.391538697 | L58: 1.570795 | O58: 3.051628262e-07 | P58: 0.58
B59: 1.7278745 | E59: -0.1720763259 | F59: 1.382763996 | G59: -0.3228337954 | H59: 1.35551646 | L59: 1.7278745 | O59: -0.03597959541 | P59: 0.57285937
B60: 1.884954 | E60: -0.3399170282 | F60: 1.331479812 | G60: -0.4840301943 | H60: 1.286116964 | L60: 1.884954 | O60: -0.07107356043 | P60: 0.5516130648
B61: 2.0420335 | E61: -0.4993878592 | F61: 1.24741023 | G61: -0.6333081834 | H61: 1.185049054 | L61: 2.0420335 | O61: -0.1044174615 | P61: 0.5167842382
B62: 2.199113 | E62: -0.6465621245 | F62: 1.132625321 | G62: -0.7669920495 | H62: 1.054801353 | L62: 2.199113 | O62: -0.1351902624 | P62: 0.46923049
B63: 2.3561925 | E63: -0.7778159113 | F63: 0.9899514638 | G63: -0.8817900577 | H63: 0.8985809851 | L63: 2.3561925 | O63: -0.162634236 | P63: 0.4101227493
B64: 2.513272 | E64: -0.8899173212 | F64: 0.8229017576 | G64: -0.9748755048 | H64: 0.7202346086 | L64: 2.513272 | O64: -0.1860736217 | P64: 0.3409164424
B65: 2.6703515 | E65: -0.9801060502 | F65: 0.6355895132 | G65: -1.043956322 | H65: 0.5241536956 | L65: 2.6703515 | O65: -0.204931265 | P65: 0.2633156555
B66: 2.827431 | E66: -1.046161356 | F66: 0.432626972 | G66: -1.087331513 | H66: 0.3151664009 | L66: 2.827431 | O66: -0.218742829 | P66: 0.1792311741
B67: 2.9845105 | E67: -1.086456741 | F67: 0.2190117369 | G67: -1.103933039 | H67: 0.09841867645 | L67: 2.9845105 | O67: -0.2271682276 | P67: 0.09073343385
B68: 3.14159 | E68: -1.1 | F68: 3.715025711e-06 | G68: -1.093352116 | H68: -0.1207524383 | L68: 3.14159 | O68: -0.23 | P68: 1.53908208e-06
B69: 3.2986695 | E69: -1.086457654 | F69: -0.2190043983 | G69: -1.05584928 | H69: -0.3369502324 | L69: 3.2986695 | O69: -0.2271684186 | P69: -0.09073039358
B70: 3.455749 | E70: -1.04616316 | F70: -0.4326199056 | G70: -0.9923479743 | H70: -0.5448512074 | L70: 3.455749 | O70: -0.2187432062 | P70: -0.1792282466
B71: 3.6128285 | E71: -0.9801087006 | F71: -0.635582893 | G71: -0.9044118095 | H71: -0.73933616 | L71: 3.6128285 | O71: -0.2049318192 | P71: -0.2633129128
B72: 3.769908 | E72: -0.8899207527 | F72: -0.8228957466 | G72: -0.794206062 | H72: -0.9156162334 | L72: 3.769908 | O72: -0.1860743392 | P72: -0.3409139522
B73: 3.9269875 | E73: -0.7778200393 | F73: -0.98994621 | G73: -0.6644443583 | H73: -1.069350834 | L73: 3.9269875 | O73: -0.1626350991 | P73: -0.4101205727
B74: 4.084067 | E74: -0.6465668474 | F74: -1.132620953 | G74: -0.518321857 | H74: -1.196754513 | L74: 4.084067 | O74: -0.1351912499 | P74: -0.4692286807
B75: 4.2411465 | E75: -0.4993930608 | F75: -1.247406857 | G75: -0.3594365728 | H75: -1.294690174 | L75: 4.2411465 | O75: -0.1044185491 | P75: -0.5167828407
B76: 4.398226 | E76: -0.3399225803 | F76: -1.331477516 | G76: -0.1917007823 | H76: -1.360746319 | L76: 4.398226 | O76: -0.07107472134 | P76: -0.5516121136
B77: 4.5553055 | E77: -0.1720820919 | F77: -1.382762834 | G77: -0.01924469021 | H77: -1.393296431 | L77: 4.5553055 | O77: -0.03598080104 | P77: -0.5728588884
B78: 4.712385 | E78: -4.37842316e-06 | F78: -1.4 | G78: 0.1536852692 | H78: -1.391539018 | L78: 4.712385 | O78: -9.154884788e-07 | P78: -0.58
B79: 4.8694645 | E79: 0.1720734429 | F79: -1.382764578 | G79: 0.3228309936 | H79: -1.355517354 | L79: 4.8694645 | O79: 0.0359789926 | P79: -0.5728596107
B80: 5.026544 | E80: 0.3399142521 | F80: -1.33148096 | G80: 0.484027561 | H80: -1.28611841 | L80: 5.026544 | O80: 0.07107297998 | P80: -0.5516135404
B81: 5.1836235 | E81: 0.4993852584 | F81: -1.247411917 | G81: 0.6333057835 | H81: -1.185051016 | L81: 5.1836235 | O81: 0.1044169177 | P81: -0.5167849369
B82: 5.340703 | E82: 0.646559763 | F82: -1.132627504 | G82: 0.766989942 | H82: -1.054803782 | L82: 5.340703 | O82: 0.1351897686 | P82: -0.4692313946
B83: 5.4977825 | E83: 0.7778138473 | F83: -0.9899540908 | G83: 0.8817882946 | H83: -0.8985838227 | L83: 5.4977825 | O83: 0.1626338044 | P83: -0.4101238376
B84: 5.654862 | E84: 0.8899156055 | F84: -0.8229047631 | G84: 0.9748741294 | H84: -0.7202377843 | L84: 5.654862 | O84: 0.186073263 | P84: -0.3409176876
B85: 5.8119415 | E85: 0.980104725 | F85: -0.6355928233 | G85: 1.043955368 | H85: -0.5241571312 | L85: 5.8119415 | O85: 0.204930988 | P85: -0.2633170268
B86: 5.969021 | E86: 1.046160454 | F86: -0.4326305052 | G86: 1.087331005 | H86: -0.3151700117 | L86: 5.969021 | O86: 0.2187426404 | P86: -0.1792326379
B87: 6.1261005 | E87: 1.086456284 | F87: -0.2190154062 | G87: 1.103932988 | H87: -0.09842237369 | L87: 6.1261005 | O87: 0.2271681322 | P87: -0.09073495398
B88: 6.28318 | E88: 1.1 | F88: -7.430051421e-06 | G88: 1.093352523 | H88: 0.1207487458 | L88: 6.28318 | O88: 0.23 | P88: -3.07816416e-06
A90: 3 | B90: 0 | C90: 1.2 | D90: 1.5 | E90: 1.2 | F90: 0 | G90: 1.171076939 | H90: 0.2618755477 | I90: 0.22 | K90: 3 | L90: 0 | M90: 0.31 | N90: 0.66 | O90: 0.31 | P90: 0
B91: 0.1570795 | E91: 1.185226034 | F91: 0.234651501 | G91: 1.105451154 | H91: 0.4876472319 | L91: 0.1570795 | O91: 0.306183392 | P91: 0.1032466604
B92: 0.314159 | E92: 1.141267918 | F92: 0.463525113 | G92: 1.012605539 | H92: 0.7014114431 | L92: 0.314159 | O92: 0.2948275455 | P92: 0.2039510497
B93: 0.4712385 | E93: 1.069208046 | F93: 0.6809852176 | G93: 0.8948262574 | H93: 0.8979046058 | L93: 0.4712385 | O93: 0.2762120785 | P93: 0.2996334958
B94: 0.628318 | E94: 0.9708207676 | F94: 0.8816772344 | G94: 0.7550134203 | H94: 1.072288414 | L94: 0.628318 | O94: 0.250795365 | P94: 0.3879379831
B95: 0.7853975 | E95: 0.8485287003 | F95: 1.060659468 | G95: 0.5966096784 | H95: 1.220268968 | L95: 0.7853975 | O95: 0.2192032476 | P95: 0.466690166
B96: 0.942477 | E96: 0.7053430756 | F96: 1.21352479 | G96: 0.4235154509 | H96: 1.3382025 | L96: 0.942477 | O96: 0.1822136279 | P96: 0.5339509075
B97: 1.0995565 | E97: 0.5447895927 | F97: 1.336509154 | G97: 0.2399928851 | H97: 1.423185102 | L97: 1.0995565 | O97: 0.1407373115 | P97: 0.5880640277
B98: 1.256636 | E98: 0.3708216046 | F98: 1.426584282 | G98: 0.05056090787 | H98: 1.473124221 | L98: 1.256636 | O98: 0.0957955812 | P98: 0.6276970843
B99: 1.4137155 | E99: 0.1877227733 | F99: 1.481532231 | G99: -0.1401160446 | H99: 1.486790195 | L99: 1.4137155 | O99: 0.04849504978 | P99: 0.6518741815
B100: 1.570795 | E100: 1.592153876e-06 | F100: 1.5 | G100: -0.3273428808 | H100: 1.463846521 | L100: 1.570795 | O100: 4.11306418e-07 | P100: 0.66
B101: 1.7278745 | E101: -0.1877196282 | F101: 1.481532853 | G101: -0.5065094626 | H101: 1.404858149 | L101: 1.7278745 | O101: -0.0484942373 | P101: 0.6518744555
B102: 1.884954 | E102: -0.3708185762 | F102: 1.426585512 | G102: -0.6732041213 | H102: 1.311277565 | L102: 1.884954 | O102: -0.09579479885 | P102: 0.6276976255
B103: 2.0420335 | E103: -0.5447867555 | F103: 1.336510961 | G103: -0.8233222883 | H103: 1.185409029 | L103: 2.0420335 | O103: -0.1407365785 | P103: 0.5880648228
B104: 2.199113 | E104: -0.7053404994 | F104: 1.213527129 | G104: -0.9531675623 | H104: 1.030351839 | L104: 2.199113 | O104: -0.1822129624 | P104: 0.5339519369
B105: 2.3561925 | E105: -0.8485264487 | F105: 1.060662283 | G105: -1.059542727 | H105: 0.8499240092 | L105: 2.3561925 | O105: -0.2192026659 | P105: 0.4666914044
B106: 2.513272 | E106: -0.9708188959 | F106: 0.8816804546 | G106: -1.139828478 | H106: 0.648568265 | L106: 2.513272 | O106: -0.2507948814 | P106: 0.3879394
B107: 2.6703515 | E107: -1.0692066 | F107: 0.6809887642 | G107: -1.192047915 | H107: 0.4312426446 | L107: 2.6703515 | O107: -0.2762117051 | P107: 0.2996350562
B108: 2.827431 | E108: -1.141266934 | F108: 0.4635288986 | G108: -1.214915227 | H108: 0.203298417 | L108: 2.827431 | O108: -0.2948272913 | P108: 0.2039527154
B109: 2.9845105 | E109: -1.185225535 | F109: 0.2346554324 | G109: -1.207867344 | H109: -0.02965168395 | L109: 2.9845105 | O109: -0.3061832633 | P109: 0.1032483902
B110: 3.14159 | E110: -1.2 | F110: 3.98038469e-06 | G110: -1.171077808 | H110: -0.2618716632 | L110: 3.14159 | O110: -0.31 | P110: 1.751369264e-06
B111: 3.2986695 | E111: -1.185226532 | F111: -0.2346475696 | G111: -1.105452499 | H111: -0.487643504 | L111: 3.2986695 | O111: -0.3061835207 | P111: -0.1032449306
B112: 3.455749 | E112: -1.141268902 | F112: -0.4635213274 | G112: -1.012607326 | H112: -0.7014079635 | L112: 3.455749 | O112: -0.2948277997 | P112: -0.2039493841
B113: 3.6128285 | E113: -1.069209492 | F113: -0.6809816711 | G113: -0.8948284422 | H113: -0.8979014602 | L113: 3.6128285 | O113: -0.276212452 | P113: -0.2996319353
B114: 3.769908 | E114: -0.9708226393 | F114: -0.8816740142 | G114: -0.7550159496 | H114: -1.07228568 | L114: 3.769908 | O114: -0.2507958485 | P114: -0.3879365662
B115: 3.9269875 | E115: -0.848530952 | F115: -1.060656654 | G115: -0.59661249 | H115: -1.220266713 | L115: 3.9269875 | O115: -0.2192038293 | P115: -0.4666889276
B116: 4.084067 | E116: -0.7053456518 | F116: -1.21352245 | G116: -0.4235184756 | H116: -1.338200779 | L116: 4.084067 | O116: -0.1822142934 | P116: -0.533949878
B117: 4.2411465 | E117: -0.54479243 | F117: -1.336507347 | G117: -0.2399960483 | H117: -1.423183957 | L117: 4.2411465 | O117: -0.1407380444 | P117: -0.5880632326
B118: 4.398226 | E118: -0.3708246331 | F118: -1.426583052 | G118: -0.05056413175 | H118: -1.473123682 | L118: 4.398226 | O118: -0.09579636355 | P118: -0.6276965431
B119: 4.5553055 | E119: -0.1877259184 | F119: -1.481531608 | G119: 0.1401128394 | H119: -1.486790274 | L119: 4.5553055 | O119: -0.04849586227 | P119: -0.6518739075
B120: 4.712385 | E120: -4.776461629e-06 | F120: -1.5 | G120: 0.3273397733 | H120: -1.463847216 | L120: 4.712385 | O120: -1.233919254e-06 | P120: -0.66
B121: 4.8694645 | E121: 0.1877164831 | F121: -1.481533476 | G121: 0.5065065291 | H121: -1.404859443 | L121: 4.8694645 | O121: 0.04849342481 | P121: -0.6518747294
B122: 5.026544 | E122: 0.3708155477 | F122: -1.426586742 | G122: 0.6732014343 | H122: -1.311279426 | L122: 5.026544 | O122: 0.09579401649 | P122: -0.6276981667
B123: 5.1836235 | E123: 0.5447839182 | F123: -1.336512768 | G123: 0.8233199138 | H123: -1.185411412 | L123: 5.1836235 | O123: 0.1407358455 | P123: -0.5880656179
B124: 5.340703 | E124: 0.7053379233 | F124: -1.213529469 | G124: 0.9531655588 | H124: -1.030354684 | L124: 5.340703 | O124: 0.1822122968 | P124: -0.5339529663
B125: 5.4977825 | E125: 0.848524197 | F125: -1.060665097 | G125: 1.059541144 | H125: -0.8499272473 | L125: 5.4977825 | O125: 0.2192020842 | P125: -0.4666926428
B126: 5.654862 | E126: 0.9708170242 | F126: -0.8816836748 | G126: 1.139827354 | H126: -0.6485718161 | L126: 5.654862 | O126: 0.2507943979 | P126: -0.3879408169
B127: 5.8119415 | E127: 1.069205155 | F127: -0.6809923107 | G127: 1.192047278 | H127: -0.4312464212 | L127: 5.8119415 | O127: 0.2762113316 | P127: -0.2996366167
B128: 5.969021 | E128: 1.14126595 | F128: -0.4635326841 | G128: 1.214915092 | H128: -0.203302326 | L128: 5.969021 | O128: 0.2948270371 | P128: -0.203954381
B129: 6.1261005 | E129: 1.185225037 | F129: -0.2346593637 | G129: 1.207867715 | H129: 0.02964773862 | L129: 6.1261005 | O129: 0.3061831346 | P129: -0.10325012
B130: 6.28318 | E130: 1.2 | F130: -7.96076938e-06 | G130: 1.171078676 | H130: 0.2618677788 | L130: 6.28318 | O130: 0.31 | P130: -3.502738527e-06
A132: 4 | B132: 0 | C132: 1.3 | D132: 1.6 | E132: 1.3 | F132: 0 | G132: 1.229855047 | H132: 0.4212559369 | I132: 0.33 | K132: 4 | L132: 0 | M132: 0.39 | N132: 0.74 | O132: 0.39 | P132: 0
B133: 0.1570795 | E133: 1.28399487 | F133: 0.2502949344 | G133: 1.133607187 | H133: 0.6528591923 | L133: 0.1570795 | O133: 0.3851984609 | P133: 0.1157614072
B134: 0.314159 | E134: 1.236373578 | F134: 0.4944267872 | G134: 1.009446204 | H134: 0.8683869148 | L134: 0.314159 | O134: 0.3709120733 | P134: 0.2286723891
B135: 0.4712385 | E135: 1.158308716 | F135: 0.7263842321 | G135: 0.8604293462 | H135: 1.062532106 | L135: 0.4712385 | O135: 0.3474926149 | P135: 0.3359527074
B136: 0.628318 | E136: 1.051722498 | F136: 0.9404557167 | G136: 0.6902258984 | H136: 1.230514274 | L136: 0.628318 | O136: 0.3155167495 | P136: 0.434960769
B137: 0.7853975 | E137: 0.9192394254 | F137: 1.131370099 | G137: 0.503026827 | H137: 1.368197147 | L137: 0.7853975 | O137: 0.2757718276 | P137: 0.5232586709
B138: 0.942477 | E138: 0.7641216652 | F138: 1.294426442 | G138: 0.3034415865 | H138: 1.472190523 | L138: 0.942477 | O138: 0.2292364996 | P138: 0.5986722296
B139: 1.0995565 | E139: 0.5901887254 | F139: 1.425609764 | G139: 0.09638461969 | H139: 1.539933744 | L139: 1.0995565 | O139: 0.1770566176 | P139: 0.6593445159
B140: 1.256636 | E140: 0.401723405 | F140: 1.521689901 | G140: -0.1130456524 | H140: 1.569758749 | L140: 1.256636 | O140: 0.1205170215 | P140: 0.7037815793
B141: 1.4137155 | E141: 0.2033663378 | F141: 1.580301046 | G141: -0.3196923699 | H141: 1.560931149 | L141: 1.4137155 | O141: 0.06100990134 | P141: 0.7308892338
B142: 1.570795 | E142: 1.724833366e-06 | F142: 1.6 | G142: -0.5184672137 | H142: 1.513668309 | L142: 1.570795 | O142: 5.174500097e-07 | P142: 0.74
B143: 1.7278745 | E143: -0.2033629306 | F143: 1.58030171 | G143: -0.7044756954 | H143: 1.429133994 | L143: 1.7278745 | O143: -0.06100887918 | P143: 0.730889541
B144: 1.884954 | E144: -0.4017201242 | F144: 1.521691213 | G144: -0.8731376768 | H144: 1.309409716 | L144: 1.884954 | O144: -0.1205160373 | P144: 0.7037821861
B145: 2.0420335 | E145: -0.5901856518 | F145: 1.425611692 | G145: -1.020300147 | H145: 1.15744348 | L145: 2.0420335 | O145: -0.1770556955 | P145: 0.6593454074
B146: 2.199113 | E146: -0.7641188744 | F146: 1.294428938 | G146: -1.142339484 | H146: 0.9769771918 | L146: 2.199113 | O146: -0.2292356623 | P146: 0.5986733838
B147: 2.3561925 | E147: -0.9192369861 | F147: 1.131373102 | G147: -1.236250679 | H147: 0.7724545236 | L147: 2.3561925 | O147: -0.2757710958 | P147: 0.5232600595
B148: 2.513272 | E148: -1.051720471 | F148: 0.9404591516 | G148: -1.29972133 | H148: 0.5489114934 | L148: 2.513272 | O148: -0.3155161412 | P148: 0.4349623576
B149: 2.6703515 | E149: -1.15830715 | F149: 0.7263880151 | G149: -1.331188583 | H149: 0.3118524634 | L149: 2.6703515 | O149: -0.3474921451 | P149: 0.335954457
B150: 2.827431 | E150: -1.236372512 | F150: 0.4944308251 | G150: -1.32987761 | H150: 0.06711460359 | L150: 2.827431 | O150: -0.3709117535 | P150: 0.2286742566
B151: 2.9845105 | E151: -1.28399433 | F151: 0.2502991279 | G151: -1.295820693 | H151: -0.1792758377 | L151: 2.9845105 | O151: -0.385198299 | P151: 0.1157633466
B152: 3.14159 | E152: -1.3 | F152: 4.245743669e-06 | G152: -1.229856422 | H152: -0.4212519203 | L152: 3.14159 | O152: -0.39 | P152: 1.963656447e-06
B153: 3.2986695 | E153: -1.283995409 | F153: -0.2502907409 | G153: -1.133609057 | H153: -0.6528554 | L153: 3.2986695 | O153: -0.3851986228 | P153: -0.1157594677
B154: 3.455749 | E154: -1.236374644 | F154: -0.4944227493 | G154: -1.009448521 | H154: -0.8683834402 | L154: 3.455749 | O154: -0.3709123931 | P154: -0.2286705215
B155: 3.6128285 | E155: -1.158310282 | F155: -0.7263804491 | G155: -0.8604320537 | H155: -1.062529034 | L155: 3.6128285 | O155: -0.3474930847 | P155: -0.3359509577
B156: 3.769908 | E156: -1.051724526 | F156: -0.9404522818 | G156: -0.6902289297 | H156: -1.230511681 | L156: 3.769908 | O156: -0.3155173578 | P156: -0.4349591803
B157: 3.9269875 | E157: -0.9192418646 | F157: -1.131367097 | G157: -0.5030301075 | H157: -1.368195098 | L157: 3.9269875 | O157: -0.2757725594 | P157: -0.5232572824
B158: 4.084067 | E158: -0.7641244561 | F158: -1.294423947 | G158: -0.3034450354 | H158: -1.472189067 | L158: 4.084067 | O158: -0.2292373368 | P158: -0.5986710754
B159: 4.2411465 | E159: -0.5901917991 | F159: -1.425607837 | G159: -0.09638815212 | H159: -1.539932917 | L159: 4.2411465 | O159: -0.1770575397 | P159: -0.6593436244
B160: 4.398226 | E160: -0.4017266858 | F160: -1.521688589 | G160: 0.1130421234 | H160: -1.569758571 | L160: 4.398226 | O160: -0.1205180058 | P160: -0.7037809725
B161: 4.5553055 | E161: -0.203369745 | F161: -1.580300382 | G161: 0.3196889314 | H161: -1.560931625 | L161: 4.5553055 | O161: -0.0610109235 | P161: -0.7308889266
B162: 4.712385 | E162: -5.174500098e-06 | F162: -1.6 | G162: 0.5184639501 | H162: -1.513669426 | L162: 4.712385 | O162: -1.552350029e-06 | P162: -0.74
B163: 4.8694645 | E163: 0.2033595234 | F163: -1.580302374 | G163: 0.7044726873 | H163: -1.429135726 | L163: 4.8694645 | O163: 0.06100785702 | P163: -0.7308898482
B164: 5.026544 | E164: 0.4017168434 | F164: -1.521692525 | G164: 0.8731349981 | H164: -1.30941202 | L164: 5.026544 | O164: 0.120515053 | P164: -0.7037827929
B165: 5.1836235 | E165: 0.5901825781 | F165: -1.425613619 | G165: 1.020297864 | H165: -1.157446299 | L165: 5.1836235 | O165: 0.1770547734 | P165: -0.6593462988
B166: 5.340703 | E166: 0.7641160835 | F166: -1.294431433 | G166: 1.142337652 | H166: -0.9769804571 | L166: 5.340703 | O166: 0.2292348251 | P166: -0.598674538
B167: 5.4977825 | E167: 0.9192345468 | F167: -1.131376104 | G167: 1.236249344 | H167: -0.7724581542 | L167: 5.4977825 | O167: 0.275770364 | P167: -0.523261448
B168: 5.654862 | E168: 1.051718443 | F168: -0.9404625864 | G168: 1.299720525 | H168: -0.5489154 | L168: 5.654862 | O168: 0.3155155329 | P168: -0.4349639462
B169: 5.8119415 | E169: 1.158305584 | F169: -0.7263917981 | G169: 1.331188327 | H169: -0.3118565497 | L169: 5.8119415 | O169: 0.3474916752 | P169: -0.3359562066
B170: 5.969021 | E170: 1.236371446 | F170: -0.4944348631 | G170: 1.32987791 | H170: -0.06711876909 | L170: 5.969021 | O170: 0.3709114337 | P170: -0.2286761242
B171: 6.1261005 | E171: 1.28399379 | F171: -0.2503033213 | G171: 1.295821541 | H171: 0.1792716956 | L171: 6.1261005 | O171: 0.3851981371 | P171: -0.1157652861
B172: 6.28318 | E172: 1.3 | F172: -8.491487339e-06 | G172: 1.229857798 | H172: 0.4212479036 | L172: 6.28318 | O172: 0.39 | P172: -3.927312894e-06
A174: 5 | B174: 0 | C174: 1.4 | D174: 1.7 | E174: 1.4 | F174: 0 | G174: 1.266652329 | H174: 0.5963152511 | I174: 0.44 | K174: 5 | L174: 0 | M174: 0.47 | N174: 0.82 | O174: 0.47 | P174: 0
B175: 0.1570795 | E175: 1.382763706 | F175: 0.2659383678 | G175: 1.137784117 | H175: 0.8295818138 | L175: 0.1570795 | O175: 0.4642135298 | P175: 0.1282761539
B176: 0.314159 | E176: 1.331479238 | F176: 0.5253284614 | G176: 0.9808999309 | H176: 1.042421353 | L176: 0.314159 | O176: 0.4469966012 | P176: 0.2533937284
B177: 0.4712385 | E177: 1.247409387 | F177: 0.7717832466 | G177: 0.7998627742 | H177: 1.229593063 | L177: 0.4712385 | O177: 0.4187731513 | P177: 0.372271919
B178: 0.628318 | E178: 1.132624229 | F178: 0.999234199 | G178: 0.5991303747 | H178: 1.386488162 | L178: 0.628318 | O178: 0.380238134 | P178: 0.4819835548
B179: 0.7853975 | E179: 0.9899501504 | F179: 1.202080731 | G179: 0.3836454217 | H179: 1.509243378 | L179: 0.7853975 | O179: 0.3323404076 | P179: 0.5798271759
B180: 0.942477 | E180: 0.8229002549 | F180: 1.375328095 | G180: 0.1587138612 | H180: 1.594836076 | L180: 0.942477 | O180: 0.2762593713 | P180: 0.6633935517
B181: 1.0995565 | E181: 0.6355878582 | F181: 1.514710374 | G181: -0.07012575476 | H181: 1.641158683 | L181: 1.0995565 | O181: 0.2133759238 | P181: 0.7306250041
B182: 1.256636 | E182: 0.4326252054 | F182: 1.61679552 | G182: -0.2972386448 | H182: 1.647070584 | L182: 1.256636 | O182: 0.1452384618 | P182: 0.7798660744
B183: 1.4137155 | E183: 0.2190099022 | F183: 1.679069861 | G183: -0.5170325453 | H183: 1.61242621 | L183: 1.4137155 | O183: 0.07352475289 | P183: 0.8099042861
B184: 1.570795 | E184: 1.857512855e-06 | F184: 1.7 | G184: -0.72409541 | H184: 1.538078619 | L184: 1.570795 | O184: 6.235936014e-07 | P184: 0.82
B185: 1.7278745 | E185: -0.2190062329 | F185: 1.679070567 | G185: -0.9133286727 | H185: 1.425858491 | L185: 1.7278745 | O185: -0.07352352106 | P185: 0.8099046265
B186: 1.884954 | E186: -0.4326216722 | F186: 1.616796914 | G186: -1.08007279 | H186: 1.278529053 | L186: 1.884954 | O186: -0.1452372757 | P186: 0.7798667468
B187: 2.0420335 | E187: -0.6355845481 | F187: 1.514712422 | G187: -1.220221976 | H187: 1.099718041 | L187: 2.0420335 | O187: -0.2133748126 | P187: 0.7306259919
B188: 2.199113 | E188: -0.8228972493 | F188: 1.375330747 | G188: -1.330325297 | H188: 0.8938283662 | L188: 2.199113 | O188: -0.2762583623 | P188: 0.6633948307
B189: 2.3561925 | E189: -0.9899475235 | F189: 1.20208392 | G189: -1.40767165 | H189: 0.6659297077 | L189: 2.3561925 | O189: -0.3323395257 | P189: 0.5798287145
B190: 2.513272 | E190: -1.132622045 | F190: 0.9992378485 | G190: -1.450356514 | H190: 0.4216336774 | L190: 2.513272 | O190: -0.3802374009 | P190: 0.4819853152
B191: 2.6703515 | E191: -1.2474077 | F191: 0.7717872661 | G191: -1.457328847 | H191: 0.1669556441 | L191: 2.6703515 | O191: -0.4187725851 | P191: 0.3722738577
B192: 2.827431 | E192: -1.33147809 | F192: 0.5253327517 | G192: -1.428416967 | H192: -0.09183338437 | L192: 2.827431 | O192: -0.4469962158 | P192: 0.2533957979
B193: 2.9845105 | E193: -1.382763125 | F193: 0.2659428234 | G193: -1.364332781 | H193: -0.3483611739 | L193: 2.9845105 | O193: -0.4642133347 | P193: 0.128278303
B194: 3.14159 | E194: -1.4 | F194: 4.511102649e-06 | G194: -1.26665425 | H194: -0.5963111697 | L194: 3.14159 | O194: -0.47 | P194: 2.175943631e-06
B195: 3.2986695 | E195: -1.382764287 | F195: -0.2659339122 | G195: -1.13778654 | H195: -0.8295780301 | L195: 3.2986695 | O195: -0.4642137249 | P195: -0.1282740047
B196: 3.455749 | E196: -1.331480386 | F196: -0.5253241711 | G196: -0.980902797 | H196: -1.042417961 | L196: 3.455749 | O196: -0.4469969866 | P196: -0.253391659
B197: 3.6128285 | E197: -1.247411073 | F197: -0.7717792272 | G197: -0.7998660122 | H197: -1.229590145 | L197: 3.6128285 | O197: -0.4187737175 | P197: -0.3722699802
B198: 3.769908 | E198: -1.132626412 | F198: -0.9992305494 | G198: -0.5991339048 | H198: -1.38648579 | L198: 3.769908 | O198: -0.380238867 | P198: -0.4819817944
B199: 3.9269875 | E199: -0.9899527773 | F199: -1.202077541 | G199: -0.3836491571 | H199: -1.509241611 | L199: 3.9269875 | O199: -0.3323412895 | P199: -0.5798256373
B200: 4.084067 | E200: -0.8229032604 | F200: -1.375325443 | G200: -0.1587177098 | H200: -1.594834957 | L200: 4.084067 | O200: -0.2762603803 | P200: -0.6633922727
B201: 4.2411465 | E201: -0.6355911683 | F201: -1.514708326 | G201: 0.07012188761 | H201: -1.64115824 | L201: 4.2411465 | O201: -0.2133770351 | P201: -0.7306240162
B202: 4.398226 | E202: -0.4326287386 | F202: -1.616794126 | G202: 0.2972348544 | H202: -1.647070828 | L202: 4.398226 | O202: -0.145239648 | P202: -0.779865402
B203: 4.5553055 | E203: -0.2190135715 | F203: -1.679069156 | G203: 0.5170289249 | H203: -1.612427135 | L203: 4.5553055 | O203: -0.07352598473 | P203: -0.8099039457
B204: 4.712385 | E204: -5.572538567e-06 | F204: -1.7 | G204: 0.7240920488 | H204: -1.538080201 | L204: 4.712385 | O204: -1.870780805e-06 | P204: -0.82
B205: 4.8694645 | E205: 0.2190025637 | F205: -1.679071273 | G205: 0.9133256535 | H205: -1.425860692 | L205: 4.8694645 | O205: 0.07352228923 | P205: -0.8099049669
... 747 more rows
